2CCN - Level 2 Cost Centre Name,,9CCN - Level 9 Cost Centre Name,9CCC - Level 9 Cost Centre Code,9AN - Level 9 Account Name,9AC - Level 9 Account Code,Transaction Description,Date Paid,Transaction Reference,Analysed Amount,2AC - Level 2 Account Codes,Supplier Name,Supplier Code
Gloucester City Council,23UE,REDACTED,REDACTED,REDACTED,REDACTED,REDACTED,02/01/2015,REDACTED,484.6,NET,REDACTED,REDACTED
Gloucester City Council,23UE,REDACTED,REDACTED,REDACTED,REDACTED,REDACTED,02/01/2015,REDACTED,525,NET,REDACTED,REDACTED
Gloucester City Council,23UE,REDACTED,REDACTED,REDACTED,REDACTED,REDACTED,02/01/2015,REDACTED,500,NET,REDACTED,REDACTED
Gloucester City Council,23UE,Vehicles,RS140,Fuel,4012,VEHICLE FUEL,02/01/2015,396034,79.41,NET,Allstar Business Solutions Ltd (Arval),06594A
Gloucester City Council,23UE,REDACTED,REDACTED,REDACTED,REDACTED,REDACTED,05/01/2015,REDACTED,10,NET,REDACTED,REDACTED
Gloucester City Council,23UE,REDACTED,REDACTED,REDACTED,REDACTED,REDACTED,05/01/2015,REDACTED,100,NET,REDACTED,REDACTED
Gloucester City Council,23UE,Business Transformation & Tech,RT700,Computer Hardware <5000,5420,HARDWARE,05/01/2015,396014,476.45,NET,Dell Computers Corporation Ltd,55920C
Gloucester City Council,23UE,City Museum Catering,LM202,Catering Provisions -Food,5110,food,05/01/2015,395970,4.96,NET,Total Produce Gloucester,12645E
Gloucester City Council,23UE,City Museum Catering,LM202,Catering Provisions -Food,5110,food,05/01/2015,395971,4.96,NET,Total Produce Gloucester,12645E
Gloucester City Council,23UE,Civic Admin And Hospitality,RC210,Hospitality,5122,DISCO 14/12/14,05/01/2015,395998,225,NET,Major Entertainments Ltd,12561M
Gloucester City Council,23UE,REDACTED,REDACTED,REDACTED,REDACTED,REDACTED,05/01/2015,REDACTED,200,NET,REDACTED,REDACTED
Gloucester City Council,23UE,Client Revs & Bens Contract,RT240,Bailiffs Fees,5368,GLO/parking penalty vat,05/01/2015,395603,0,NET,Bristow & Sutor,05450M
Gloucester City Council,23UE,Contact Centre,RB300,Basic Pay -Admin /Prof Staff,2601,Temporary Staff,05/01/2015,395985,808.5,NET,Hbhc Synergy Ltd,13363J
Gloucester City Council,23UE,Council Streetcare Team,HI101,General Repair/Maint Buildings,3000,BARNWOOD PARK,05/01/2015,395990,148,NET,Greenfields Garden Services Ltd,48130G
Gloucester City Council,23UE,Council Streetcare Team,HI101,General Repair/Maint Buildings,3000,LONDON RD GARDENS,05/01/2015,395989,300,NET,Greenfields Garden Services Ltd,48130G
Gloucester City Council,23UE,Council Streetcare Team,HI101,Maint Of Grounds - General,3030,ABBEYMEAD PLAYING FIELD,05/01/2015,395991,994.75,NET,Greenfields Garden Services Ltd,48130G
Gloucester City Council,23UE,Council Streetcare Team,HI101,Maint Of Grounds - General,3030,LONDON RD,05/01/2015,395988,767,NET,Greenfields Garden Services Ltd,48130G
Gloucester City Council,23UE,Countryside Unit,LP201,Publications,5060,BOOKS,05/01/2015,396010,47.93,NET,Nhbs Ltd,57405F
Gloucester City Council,23UE,Development Management,PT200,Vocational Training,2970,Planning courses,05/01/2015,395766,446.25,NET,Rtpi South West Branch,51344J
Gloucester City Council,23UE,Environmental Planning,LM340,Vocational Training,2970,Planning courses,05/01/2015,395766,63.75,NET,Rtpi South West Branch,51344J
Gloucester City Council,23UE,Events,LT410,Fees For Services Received,5350,docks fireworks 8/11/14,05/01/2015,396048,706.68,NET,"Police & Crime Commissioner, Gloucestershire",49521B
Gloucester City Council,23UE,Events,LT410,Fees For Services Received,5350,Fireworks Display 08/11/2014,05/01/2015,394358,768,NET,Show Services Group Ltd,56329F
Gloucester City Council,23UE,REDACTED,REDACTED,REDACTED,REDACTED,REDACTED,05/01/2015,REDACTED,266,CAP,REDACTED,REDACTED
Gloucester City Council,23UE,REDACTED,REDACTED,REDACTED,REDACTED,REDACTED,05/01/2015,REDACTED,608,CAP,REDACTED,REDACTED
Gloucester City Council,23UE,Gl1 Emergency Works,RY160,Contract Payments,0020,GL1,05/01/2015,396097,17412.44,CAP,Central Roofing & Building Services Ltd,59480W
Gloucester City Council,23UE,Grants To Voluntary Sector,FG100,Members Allocation Fund,7100F,LONDON RD,05/01/2015,395988,1000,NET,Greenfields Garden Services Ltd,48130G
Gloucester City Council,23UE,Guildhall Bar And Caf�,LA210,Catering Provisions -Food,5110,food,05/01/2015,395972,55,NET,Woodward Foodservice,10714F
Gloucester City Council,23UE,Guildhall Bar And Caf�,LA210,Catering Provisions -Food,5110,food,05/01/2015,395976,144,NET,Winstones Ice Cream Ltd,56347D
Gloucester City Council,23UE,Guildhall Bar And Caf�,LA210,Catering Provisions -Food,5110,food,05/01/2015,395979,4.96,NET,Total Produce Gloucester,12645E
Gloucester City Council,23UE,Guildhall Bar And Caf�,LA210,Catering Provisions -Food,5110,food,05/01/2015,395980,4.96,NET,Total Produce Gloucester,12645E
Gloucester City Council,23UE,Guildhall Bar And Caf�,LA210,Catering Provisions -Food,5110,food,05/01/2015,395981,4.96,NET,Total Produce Gloucester,12645E
Gloucester City Council,23UE,Guildhall Bar And Caf�,LA210,Catering Provisions -Food,5110,food,05/01/2015,395982,4.96,NET,Total Produce Gloucester,12645E
Gloucester City Council,23UE,Guildhall Bar And Caf�,LA210,Catering Provisions -Food,5110,FOOD,05/01/2015,396102,4.96,NET,Total Produce Gloucester,12645E
Gloucester City Council,23UE,Guildhall Bar And Caf�,LA210,Catering Provisions -Liquor,5111,drink,05/01/2015,395973,1907.53,NET,Cellar Supplies Cheltenham Ltd,01563L
Gloucester City Council,23UE,Guildhall Bar And Caf�,LA210,Catering Provisions -Liquor,5111,drink,05/01/2015,395974,643.02,NET,Cellar Supplies Cheltenham Ltd,01563L
Gloucester City Council,23UE,Guildhall Bar And Caf�,LA210,Catering Provisions -Liquor,5111,drink,05/01/2015,395975,840.78,NET,Cellar Supplies Cheltenham Ltd,01563L
Gloucester City Council,23UE,REDACTED,REDACTED,REDACTED,REDACTED,REDACTED,05/01/2015,REDACTED,110,NET,REDACTED,REDACTED
Gloucester City Council,23UE,Internal Audit,RT300,Basic Pay - Temporary Staff,2751,Temporary Staff,05/01/2015,396095,525,NET,Robert Half Ltd,03959K
Gloucester City Council,23UE,Investment Property,RB500,Advertising And Publicity,5702,Temporary Staff,05/01/2015,395987,150,NET,Alder King*,02367D
Gloucester City Council,23UE,Legal Services,RS200,Basic Pay - Temporary Staff,2751,Temporary Staff,05/01/2015,396013,717.5,NET,Michael Page International Recruitment Ltd,06601P
Gloucester City Council,23UE,Parks Contract Management,LP100,Maint Of Grounds - General,3030,CONEY HILL,05/01/2015,395730,110.16,NET,Enterprise (Aol) Ltd,06695G
Gloucester City Council,23UE,Parks Contract Management,LP100,Maint Of Grounds - General,3030,MEADOWLEAZE,05/01/2015,395727,40.5,NET,Enterprise (Aol) Ltd,06695G
Gloucester City Council,23UE,Planning Policy,PT300,Vocational Training,2970,Planning courses,05/01/2015,395766,446.25,NET,Rtpi South West Branch,51344J
Gloucester City Council,23UE,Taxi Marshalling Scheme,HL101,Taxi Marshals,5387,TAXI MARSHALLS,05/01/2015,395962,172.5,NET,Cuff Security Services Ltd,12073G
Gloucester City Council,23UE,Taxi Marshalling Scheme,HL101,Taxi Marshals,5387,TAXI MARSHALLS,05/01/2015,395963,172.5,NET,Cuff Security Services Ltd,12073G
Gloucester City Council,23UE,Taxi Marshalling Scheme,HL101,Taxi Marshals,5387,TAXI MARSHALLS,05/01/2015,395964,172.5,NET,Cuff Security Services Ltd,12073G
Gloucester City Council,23UE,Taxi Marshalling Scheme,HL101,Taxi Marshals,5387,TAXI MARSHALLS,05/01/2015,396101,172.5,NET,Cuff Security Services Ltd,12073G
Gloucester City Council,23UE,Tic Stamp Sales,LT102,Postages,5400,stamp,05/01/2015,395967,174.6,NET,Universal Mail United Kingdom Ltd,14283Y
Gloucester City Council,23UE,Tic Trading,LT110,Materials For Sale,5080,clothing,05/01/2015,395969,318,NET,Sportfolio Europe Lp,14456R
Gloucester City Council,23UE,Tourism Marketing,LT100,Window Cleaning,3610,cleaning,05/01/2015,395968,12,NET,Interserve Fs (Uk) Limited,00442K
Gloucester City Council,23UE,Training Schemes,ET100,Fees For Services Received,5350,training,05/01/2015,395983,2260,NET,The Gold Standard,56141C
Gloucester City Council,23UE,Vehicles,RS140,Fuel,4012,FUEL,05/01/2015,396094,73.33,NET,Allstar Business Solutions Ltd (Arval),06594A
Gloucester City Council,23UE,Building Control,PT400,Basic Pay - Temporary Staff,2751,Temporary Staff,06/01/2015,395297,1534.76,NET,The Oyster Partnership Limited,14900T
Gloucester City Council,23UE,Building Control,PT400,Basic Pay - Temporary Staff,2751,Temporary Staff,06/01/2015,395298,1640.3,NET,The Oyster Partnership Limited,14900T
Gloucester City Council,23UE,REDACTED,REDACTED,REDACTED,REDACTED,REDACTED,06/01/2015,REDACTED,170,NET,REDACTED,REDACTED
Gloucester City Council,23UE,Civica It Contract,RT270,Contracted Services,6970,IT FEB 2014,06/01/2015,396098,47916.66,NET,Civica Uk Ltd,10841X
Gloucester City Council,23UE,Crematorium,HC200,Equipment For Sale,5050,BENCH,06/01/2015,395760,1093.6,NET,Burlingham Memorial Solutions,12713N
Gloucester City Council,23UE,Crematorium,HC200,Fees For Services Received,5350,Doctors Fees December 2014,06/01/2015,396138,1128.96,NET,Dr C M Stretton,00306P
Gloucester City Council,23UE,Crematorium,HC200,Fees For Services Received,5350,Doctors Fees December 2014,06/01/2015,396139,1118.08,NET,Dr D Martin,00890P
Gloucester City Council,23UE,Crematorium,HC200,Fees For Services Received,5350,Doctors Fees December 2014,06/01/2015,396140,350.16,NET,Dr R W Bell,01571P
Gloucester City Council,23UE,REDACTED,REDACTED,REDACTED,REDACTED,REDACTED,06/01/2015,REDACTED,50,NET,REDACTED,REDACTED
Gloucester City Council,23UE,Disabled Facilities Grants,CY013,Disabled Facility Grants,0074,Disabled Facilities Grant MDF5073,06/01/2015,396141,4671.99,CAP,Mears Home Improvement Ltd,00096G
Gloucester City Council,23UE,Disabled Facilities Grants,CY013,Disabled Facility Grants,0074,Disabled Facilities Grant MDF5127,06/01/2015,396142,1210,CAP,Tpg Disableaids,51324R
Gloucester City Council,23UE,Investment Property,RB500,General Repair/Maint Buildings,3000,Replace Faulty EMS Device,06/01/2015,394440,483.86,NET,A & E Fire Equipment Limited,54289L
Gloucester City Council,23UE,Postal Services,RS120,Postages,5400,"Licence Fee, 04/01/2015",06/01/2015,395294,787,NET,Royal Mail S.Wales & South West,35830S
Gloucester City Council,23UE,Utilities,PT502,Electricity Supply,3110,navigation house,06/01/2015,395984,26.35,NET,Opus Energy (Corporate),12788B
Gloucester City Council,23UE,Cemeteries,HC300,Clothing,5200,ANORAKS,07/01/2015,395803,43.85,NET,Safpro Industrial Supply Co,39190W
Gloucester City Council,23UE,REDACTED,REDACTED,REDACTED,REDACTED,REDACTED,07/01/2015,REDACTED,120,NET,REDACTED,REDACTED
Gloucester City Council,23UE,Development Management,PT200,Advertising And Publicity,5702,ADVERT 19/12/14,07/01/2015,395997,321.38,NET,Local World Ltd,08556P
Gloucester City Council,23UE,Docks Complex - Services,RB100,Service Charges,3020,TRADE WASTE JAN-MAR 2015,07/01/2015,395037,13935.52,NET,Enterprise (Aol) Ltd,06695G
Gloucester City Council,23UE,REDACTED,REDACTED,REDACTED,REDACTED,REDACTED,07/01/2015,REDACTED,25,NET,REDACTED,REDACTED
Gloucester City Council,23UE,REDACTED,REDACTED,REDACTED,REDACTED,REDACTED,07/01/2015,REDACTED,250,NET,REDACTED,REDACTED
Gloucester City Council,23UE,Investment Property,RB500,Fire Alarm Maintenance,3053,Line Charges,07/01/2015,395649,378.68,NET,Adt Fire & Security Plc,54086D
Gloucester City Council,23UE,Investment Property,RB500,Fire Alarm Maintenance,3053,Service Charges,07/01/2015,395650,2714.83,NET,Adt Fire & Security Plc,54086D
Gloucester City Council,23UE,Investment Property,RB500,General Repair/Maint Buildings,3000,New Batteries,07/01/2015,394212,825,NET,Va Systems Ltd,15034N
Gloucester City Council,23UE,Investment Property,RB500,Repair/Maint Of Fixed Plant,3006,EASTGATE MARKET,07/01/2015,395768,365,NET,Pro Door Ltd,04760C
Gloucester City Council,23UE,Legal Services,RS200,Basic Pay - Temporary Staff,2751,Temporary Staff,07/01/2015,396012,750,NET,Paystream My Max Limited,15049Z
Gloucester City Council,23UE,Legal Services,RS200,Basic Pay - Temporary Staff,2751,Temporary Staff,07/01/2015,395802,395.1,NET,Premiere Employment Group Ltd,55468Z
Gloucester City Council,23UE,Parks Contract Management,LP100,Maint Of Grounds - General,3030,ALMA PLACE,07/01/2015,395729,91.8,NET,Enterprise (Aol) Ltd,06695G
Gloucester City Council,23UE,Parks Contract Management,LP100,Maint Of Grounds - General,3030,CONEY HILL PA,07/01/2015,395728,25.19,NET,Enterprise (Aol) Ltd,06695G
Gloucester City Council,23UE,Parks Contract Management,LP100,Maint Of Grounds - General,3030,POD SWING,07/01/2015,395712,750,NET,Proludic Ltd,03576G
Gloucester City Council,23UE,Parks Contract Management,LP100,Maint Of Grounds - General,3030,SEBERT ST,07/01/2015,395726,48.6,NET,Enterprise (Aol) Ltd,06695G
Gloucester City Council,23UE,The Fleece,RB530,General Repair/Maint Buildings,3000,FLOODLIGHT HIRE,07/01/2015,391807,30.8,NET,Ermin Plant Hire & Services Ltd,14150V
Gloucester City Council,23UE,Aspire Admin Charges,LC105,Other Minor Income,9900,BAILIFF PAYMENTS 12/12/14,08/01/2015,396332,142,NET,Aspire Sports & Cultural Trust,08135V
Gloucester City Council,23UE,Aspire Admin Charges,LC105,Other Minor Income,9900,BAILIFF PAYMENTS 26/12/14,08/01/2015,396333,181.2,NET,Aspire Sports & Cultural Trust,08135V
Gloucester City Council,23UE,Contact Centre,RB300,Basic Pay -Admin /Prof Staff,2601,Temporary Staff,08/01/2015,396284,143,NET,Hbhc Synergy Ltd,13363J
Gloucester City Council,23UE,Council Streetcare Team,HI101,Maint Of Grounds - General,3030,Goals,08/01/2015,395518,1085.16,NET,Stadia Sports International At Broxap,13032M
Gloucester City Council,23UE,Countryside Unit,LP201,Contract Cleaning,3620,Bill December 2014,08/01/2015,396289,130,NET,Cv Fisher Cleaning Services,14907C
Gloucester City Council,23UE,Crematorium,HC200,Book Of Memory,5055,Site Visit 05/12/2014,08/01/2015,396251,28.01,NET,Hilton Cabinet Co Ltd,21910A
Gloucester City Council,23UE,Crematorium,HC200,Memorial Plaques,5053,Bronze Plaque,08/01/2015,396248,162,NET,Arkell & Hurcombe,59812T
Gloucester City Council,23UE,Crematorium,HC200,Memorial Plaques,5053,Bronze Plaque,08/01/2015,396250,48,NET,Arkell & Hurcombe,59812T
Gloucester City Council,23UE,Crematorium,HC200,Memorial Plaques,5053,Bronze Plaques,08/01/2015,396249,192,NET,Arkell & Hurcombe,59812T
Gloucester City Council,23UE,Crematorium,HC200,Repair/Maint Of Fixed Plant,3006,12 Monthly Service Visit,08/01/2015,396279,4669.51,NET,Facultatieve Technologies Ltd,51210H
Gloucester City Council,23UE,Disabled Facilities Grants,CY013,Disabled Facility Grants,0074,"Disabled Facilities Grant, VAT element due",08/01/2015,396334,0,CAP,Nks Contracts (Central) Ltd,56355E
Gloucester City Council,23UE,Disabled Facilities Grants,CY013,Disabled Facility Grants,0074,Works,08/01/2015,396277,5266.57,CAP,Davey's Building Maintenance,57010K
Gloucester City Council,23UE,Equalities,EH102,Vocational Training,2970,Training Course fees,08/01/2015,395762,180,NET,South West Councils,56523H
Gloucester City Council,23UE,Glos City Eaep,LM250,Fees For Services Received,5350,Archive Enhancement,08/01/2015,396265,5408,NET,Cotswold Archaeology Ltd,09180E
Gloucester City Council,23UE,Guildhall Bar And Caf�,LA210,Catering Provisions -Liquor,5111,gas,08/01/2015,396096,8.38,NET,Boc Ltd,59172L
Gloucester City Council,23UE,REDACTED,REDACTED,REDACTED,REDACTED,REDACTED,08/01/2015,REDACTED,80,NET,REDACTED,REDACTED
Gloucester City Council,23UE,Homelessness,CH120,Board And Lodging,5515,various tenants,08/01/2015,396273,1398.11,NET,Riverside Group Ltd,03241U
Gloucester City Council,23UE,Homelessness,CH120,Board And Lodging,5515,various tenants,08/01/2015,396272,1171.44,NET,Riverside Group Ltd,03241U
Gloucester City Council,23UE,Homelessness,CH120,Fees For Services Received,5350,Medical Report,08/01/2015,396262,20.5,NET,Saintbridge Surgery,58374F
Gloucester City Council,23UE,Homelessness,CH120,Fees For Services Received,5350,Interpreting 12/12/2014,08/01/2015,396263,36.4,NET,REDACTED,REDACTED
Gloucester City Council,23UE,Investment Property,RB500,Repair/Maint Of Fixed Plant,3006,"Engineers 08/12/2014, Guildhall",08/01/2015,396276,685,NET,Airvent Systems Limited,51073T
Gloucester City Council,23UE,Kings Sq Paving Emerg Works,RY161,Contract Payments,0020,Stacca Barrier System,08/01/2015,396294,186,CAP,Ermin Plant Hire & Services Ltd,14150V
Gloucester City Council,23UE,Legal Services,RS200,Basic Pay - Temporary Staff,2751,Temporary Staff,08/01/2015,394763,1550.35,NET,Venn Group Ltd,04339P
Gloucester City Council,23UE,Rehousing,CH111,Fees For Services Received,5350,Medical Information,08/01/2015,396258,20.5,NET,Barnwood Medical Practice,11672L
Gloucester City Council,23UE,Rehousing,CH111,Fees For Services Received,5350,Medical Information report,08/01/2015,396264,20.5,NET,Dr R W Bell,01571P
Gloucester City Council,23UE,Rehousing,CH111,Fees For Services Received,5350,Medical Report,08/01/2015,396259,20.5,NET,Rosebank Health,03041E
Gloucester City Council,23UE,Safer Stronger Communities,FP841,Other Minor Supplies Services,5590,Talks,08/01/2015,396253,464.7,NET,REDACTED,REDACTED
Gloucester City Council,23UE,Stationery Services,RS150,Printing,5300,Paper,08/01/2015,396271,519.7,NET,Premier Paper Group Ltd,09166Y
Gloucester City Council,23UE,Stationery Services,RS150,Stationery,5302,Stationary,08/01/2015,396267,95.02,NET,Lyreco Uk Ltd,11746G
Gloucester City Council,23UE,Stationery Services,RS150,Stationery,5302,Stationary,08/01/2015,396268,29.79,NET,Lyreco Uk Ltd,11746G
Gloucester City Council,23UE,Swrda Asset Transfer,RY184,Capital General Repairs & Main,0013,Chain with Padlock,08/01/2015,396257,24.99,CAP,Ermin Plant Hire & Services Ltd,14150V
Gloucester City Council,23UE,Tourism Marketing,LT100,Rents,3200,Rent for quarter 25/12/2014,08/01/2015,396335,5725,NET,P W Fido & Associates,01210A
Gloucester City Council,23UE,Asset Management,RS300,General Repair/Maint Buildings,3000,Pair of Gates,09/01/2015,394214,1850,NET,Scottys Gates Ltd,15050R
Gloucester City Council,23UE,Blackfriars,LA609,Hire Of Equipment,5020,Projection Screen,09/01/2015,396238,28,NET,Unique Sound Systems,59571S
Gloucester City Council,23UE,Business Transformation & Tech,RT700,Computer Software Maintenance,5427,HOSTING TO 30/11/15,09/01/2015,395763,5000,NET,Zengenti Ltd,08467P
Gloucester City Council,23UE,Cemeteries,HC300,Basic Pay - Temporary Staff,2751,STAFF NOV 2014,09/01/2015,395031,2499.64,NET,Anderson Recruitment Ltd,14646H
Gloucester City Council,23UE,Cemeteries,HC300,Routine R And M - Vehicles,4011,Plug Cap,09/01/2015,396217,77.5,NET,Garden Machinery Gloucester,55641K
Gloucester City Council,23UE,Client Revs & Bens Contract,RT240,Bailiffs Fees,5368,VAT on statutory fees,09/01/2015,396254,0,NET,Bristow & Sutor,05450M
Gloucester City Council,23UE,Client Revs & Bens Contract,RT240,Bailiffs Fees,5368,VAT on statutory fees,09/01/2015,396255,0,NET,Bristow & Sutor,05450M
Gloucester City Council,23UE,Client Revs & Bens Contract,RT240,Bailiffs Fees,5368,VAT on statutory fees,09/01/2015,396256,838.74,NET,Bristow & Sutor,05450M
Gloucester City Council,23UE,Community Safety Projects,FP500,Basic Pay - Temporary Staff,2751,Temporary Staff,09/01/2015,396059,425.74,NET,Travail Employment Ltd,49371W
Gloucester City Council,23UE,Community Safety Projects,FP500,Basic Pay - Temporary Staff,2751,Temporary Staff,09/01/2015,396283,253.02,NET,Travail Employment Ltd,49371W
Gloucester City Council,23UE,Contact Centre,RB300,Basic Pay -Admin /Prof Staff,2601,Temporary Staff,09/01/2015,396280,114.84,NET,One To One Recruitment,04752H
Gloucester City Council,23UE,Council Streetcare Team,HI101,Maint Of Paths/Hardstandings,3056,"Coney Hill Park, Gravel Path",09/01/2015,396234,496.7,NET,Greenfields Garden Services Ltd,48130G
Gloucester City Council,23UE,Council Streetcare Team,HI101,Maint Of Paths/Hardstandings,3056,"Fence Repair, Clearwater Drive",09/01/2015,396233,438,NET,Greenfields Garden Services Ltd,48130G
Gloucester City Council,23UE,Docks Complex - Services,RB100,Catering Provisions -Food,5110,Food w/e 07/12/2014,09/01/2015,395275,116.66,NET,Janes Pantry,24500W
Gloucester City Council,23UE,Docks Complex - Services,RB100,Operational Equipment <5000,5012,MIFARE CLASSIC,09/01/2015,395739,108.5,NET,Bannerbridge Plc,13703G
Gloucester City Council,23UE,Flooding And Drainage,HE306,Maint Of Grounds - General,3030,Blackbridge Clearance,09/01/2015,396270,250,NET,Tcv T/A The Conservation Volunteers,55897V
Gloucester City Council,23UE,Gates Streets,GY014,Contract Payments,0020,Litter Bins,09/01/2015,395045,780.2,CAP,Wybone Limited,13540L
Gloucester City Council,23UE,REDACTED,REDACTED,REDACTED,REDACTED,REDACTED,09/01/2015,REDACTED,100,NET,REDACTED,REDACTED
Gloucester City Council,23UE,REDACTED,REDACTED,REDACTED,REDACTED,REDACTED,09/01/2015,REDACTED,120,NET,REDACTED,REDACTED
Gloucester City Council,23UE,REDACTED,REDACTED,REDACTED,REDACTED,REDACTED,09/01/2015,REDACTED,75,NET,REDACTED,REDACTED
Gloucester City Council,23UE,REDACTED,REDACTED,REDACTED,REDACTED,REDACTED,09/01/2015,REDACTED,100,NET,REDACTED,REDACTED
Gloucester City Council,23UE,REDACTED,REDACTED,REDACTED,REDACTED,REDACTED,09/01/2015,REDACTED,75,NET,REDACTED,REDACTED
Gloucester City Council,23UE,REDACTED,REDACTED,REDACTED,REDACTED,REDACTED,09/01/2015,REDACTED,100,NET,REDACTED,REDACTED
Gloucester City Council,23UE,Homelessness,CH120,Basic Pay - Temporary Staff,2751,Temporary Staff,09/01/2015,396287,703,NET,Building Recruitment Company Ltd,55385E
Gloucester City Council,23UE,Homelessness,CH120,Basic Pay - Temporary Staff,2751,Temporary Staff,09/01/2015,396288,703,NET,Building Recruitment Company Ltd,55385E
Gloucester City Council,23UE,Homelessness,CH120,Basic Pay - Temporary Staff,2751,Temporary Staff,09/01/2015,395808,703,NET,Building Recruitment Company Ltd,55385E
Gloucester City Council,23UE,Homelessness,CH120,Basic Pay - Temporary Staff,2751,Temporary Staff,09/01/2015,395540,703,NET,Building Recruitment Company Ltd,55385E
Gloucester City Council,23UE,Homelessness,CH120,Board And Lodging,5515,various tenants,09/01/2015,396372,644.4,NET,James Legge Property (Ltd),07844R
Gloucester City Council,23UE,Homelessness,CH120,Board And Lodging,5515,various tenants,09/01/2015,396378,951.17,NET,Carbrey Housing Ltd,11098G
Gloucester City Council,23UE,Homelessness,CH120,Board And Lodging,5515,various tenants,09/01/2015,396380,792.67,NET,Kalmwood Ltd,08568G
Gloucester City Council,23UE,Homelessness,CH120,Board And Lodging,5515,various tenants,09/01/2015,396379,599.82,NET,Carbrey Housing Ltd,11098G
Gloucester City Council,23UE,Homelessness,CH120,Board And Lodging,5515,various tenants,09/01/2015,396375,1993,NET,Dorchester House Trust,12298D
Gloucester City Council,23UE,Homelessness,CH120,Board And Lodging,5515,various tenants,09/01/2015,396377,100,NET,Carbrey Housing Ltd,11098G
Gloucester City Council,23UE,REDACTED,REDACTED,REDACTED,REDACTED,REDACTED,09/01/2015,REDACTED,838.91,NET,REDACTED,REDACTED
Gloucester City Council,23UE,REDACTED,REDACTED,REDACTED,REDACTED,REDACTED,09/01/2015,REDACTED,3040.33,NET,REDACTED,REDACTED
Gloucester City Council,23UE,REDACTED,REDACTED,REDACTED,REDACTED,REDACTED,09/01/2015,REDACTED,997.1,NET,REDACTED,REDACTED
Gloucester City Council,23UE,REDACTED,REDACTED,REDACTED,REDACTED,REDACTED,09/01/2015,REDACTED,154.8,NET,REDACTED,REDACTED
Gloucester City Council,23UE,REDACTED,REDACTED,REDACTED,REDACTED,REDACTED,09/01/2015,REDACTED,287.88,NET,REDACTED,REDACTED
Gloucester City Council,23UE,REDACTED,REDACTED,REDACTED,REDACTED,REDACTED,09/01/2015,REDACTED,450,NET,REDACTED,REDACTED
Gloucester City Council,23UE,REDACTED,REDACTED,REDACTED,REDACTED,REDACTED,09/01/2015,REDACTED,1000,NET,REDACTED,REDACTED
Gloucester City Council,23UE,Postal Services,RS120,Postages,5400,Post 05/12 - 18/12 2014,09/01/2015,396282,1686.98,NET,Royal Mail S.Wales & South West,35830S
Gloucester City Council,23UE,Postal Services,RS120,Postages,5400,"Response Plus Service, Dec 2014",09/01/2015,396285,142.48,NET,Royal Mail S.Wales & South West,35830S
Gloucester City Council,23UE,Tic Theatre Ticket Sales,LT107,Materials For Sale,5080,"Ticket Sales, 'Christmas Celebration'",09/01/2015,396369,2625,NET,Bbc Radio Gloucestershire,14597V
Gloucester City Council,23UE,Tic Theatre Ticket Sales,LT107,Materials For Sale,5080,"Ticket Sales, 'Rapunzel'",09/01/2015,396371,673,NET,Kings Theatre,54213X
Gloucester City Council,23UE,Tic Theatre Ticket Sales,LT107,Materials For Sale,5080,"Ticket Sales, Christmas Concert",09/01/2015,396370,889,NET,Saint Cecilia Singers,57588T
Gloucester City Council,23UE,Tic Theatre Ticket Sales,LT107,Other Minor Income,9900,"Ticket Sales, 'Christmas Celebration'",09/01/2015,396369,-37.5,NET,Bbc Radio Gloucestershire,14597V
Gloucester City Council,23UE,Tic Theatre Ticket Sales,LT107,Sale Of Goods And Services,9230,"Ticket Sales, 'Christmas Celebration'",09/01/2015,396369,-378.75,NET,Bbc Radio Gloucestershire,14597V
Gloucester City Council,23UE,Tic Theatre Ticket Sales,LT107,Sale Of Goods And Services,9230,"Ticket Sales, 'Rapunzel'",09/01/2015,396371,-56.08,NET,Kings Theatre,54213X
Gloucester City Council,23UE,Tic Theatre Ticket Sales,LT107,Sale Of Goods And Services,9230,"Ticket Sales, Christmas Concert",09/01/2015,396370,-37.03,NET,Saint Cecilia Singers,57588T
Gloucester City Council,23UE,Cemeteries,HC300,Routine R And M - Vehicles,4011,Chainsaw,12/01/2015,396209,88.49,NET,Garden Machinery Gloucester,55641K
Gloucester City Council,23UE,City Museum And Art Gallery,LM200,Sewerage And Environ Charges,3402,Disposal Unit,12/01/2015,396202,43.95,NET,Ocs Group Uk Limited T/A Cannon,06506A
Gloucester City Council,23UE,Civica Admin Charges,RT105,Postages,5400,Post 24/11 - 12/12 2014,12/01/2015,396278,1619.48,NET,Royal Mail S.Wales & South West,35830S
Gloucester City Council,23UE,Civica Fod Contract,RT260,Contracted Services,6970,Yr 3 Qr 1,12/01/2015,396220,191455.02,NET,Civica Uk Ltd,10841X
Gloucester City Council,23UE,REDACTED,REDACTED,REDACTED,REDACTED,REDACTED,12/01/2015,REDACTED,150,NET,REDACTED,REDACTED
Gloucester City Council,23UE,REDACTED,REDACTED,REDACTED,REDACTED,REDACTED,12/01/2015,REDACTED,333,NET,REDACTED,REDACTED
Gloucester City Council,23UE,REDACTED,REDACTED,REDACTED,REDACTED,REDACTED,12/01/2015,REDACTED,100,NET,REDACTED,REDACTED
Gloucester City Council,23UE,REDACTED,REDACTED,REDACTED,REDACTED,REDACTED,12/01/2015,REDACTED,75,NET,REDACTED,REDACTED
Gloucester City Council,23UE,REDACTED,REDACTED,REDACTED,REDACTED,REDACTED,12/01/2015,REDACTED,150,NET,REDACTED,REDACTED
Gloucester City Council,23UE,REDACTED,REDACTED,REDACTED,REDACTED,REDACTED,12/01/2015,REDACTED,600,NET,REDACTED,REDACTED
Gloucester City Council,23UE,REDACTED,REDACTED,REDACTED,REDACTED,REDACTED,12/01/2015,REDACTED,435,NET,REDACTED,REDACTED
Gloucester City Council,23UE,Legal Services,RS200,Basic Pay - Temporary Staff,2751,Temporary Staff,12/01/2015,396219,665,NET,Michael Page International Recruitment Ltd,06601P
Gloucester City Council,23UE,Registration Of Electors,RS400,Stationery,5302,Envelopes,12/01/2015,396149,190,NET,Alpha Response Print & Mail Ltd,03029U
Gloucester City Council,23UE,Shopmobility,PE200,Cleaning Materials,3600,Disposal Units,12/01/2015,396208,7.11,NET,Ocs Group Uk Limited T/A Cannon,06506A
Gloucester City Council,23UE,Solace Project,FP843,Other Minor Supplies Services,5590,Dec 14 ASB Salary,12/01/2015,396203,3250,NET,Gloucester City Homes,05244T
Gloucester City Council,23UE,REDACTED,REDACTED,REDACTED,REDACTED,REDACTED,12/01/2015,REDACTED,40,CAP,REDACTED,REDACTED
Gloucester City Council,23UE,Tic Trading,LT110,Materials For Sale,5080,Uniforms,12/01/2015,396179,319.75,NET,Sportfolio Europe Lp,14456R
Gloucester City Council,23UE,Vending Machine,RB111,Hire Of Equipment,5020,Lease Rental Nov 14 - Feb 15,12/01/2015,396295,162.57,NET,Siemens Financial Services Ltd,54427Z
Gloucester City Council,23UE,Disabled Facilities Grants,CY013,Disabled Facility Grants,0074,"Disabled Facilities Grant, VAT element due",12/01/2015,396145,0,CAP,In2print Ltd,55471L
Gloucester City Council,23UE,Building Control,PT400,Basic Pay - Temporary Staff,2751,Temporary Staff,13/01/2015,396211,1529.02,NET,The Oyster Partnership Limited,14900T
Gloucester City Council,23UE,Building Control,PT400,Basic Pay - Temporary Staff,2751,Temporary Staff,13/01/2015,396213,1567.64,NET,The Oyster Partnership Limited,14900T
Gloucester City Council,23UE,Building Control,PT400,Basic Pay - Temporary Staff,2751,Temporary Staff,13/01/2015,396160,854.74,NET,The Oyster Partnership Limited,14900T
Gloucester City Council,23UE,Building Control,PT400,Basic Pay - Temporary Staff,2751,Temporary Staff,13/01/2015,396212,1632.6,NET,The Oyster Partnership Limited,14900T
Gloucester City Council,23UE,Building Control,PT400,Basic Pay - Temporary Staff,2751,Temporary Staff,13/01/2015,396214,1660.4,NET,The Oyster Partnership Limited,14900T
Gloucester City Council,23UE,Building Control,PT400,Basic Pay - Temporary Staff,2751,Temporary Staff,13/01/2015,396178,890.5,NET,The Oyster Partnership Limited,14900T
Gloucester City Council,23UE,Cleansing Services Admin,HI100,Signs / Nameplates,3039,Garlandstone Walk,13/01/2015,396237,135,NET,Enterprise (Aol) Ltd,06695G
Gloucester City Council,23UE,Client Revs & Bens Contract,RT240,Bailiffs Fees,5368,VAT due on statutory fees,13/01/2015,396222,0,NET,Bristow & Sutor,05450M
Gloucester City Council,23UE,Client Revs & Bens Contract,RT240,Bailiffs Fees,5368,VAT on statutory fees,13/01/2015,396221,0,NET,Bristow & Sutor,05450M
Gloucester City Council,23UE,Client Revs & Bens Contract,RT240,Bailiffs Fees,5368,VAT on statutory fees,13/01/2015,396223,761.32,NET,Bristow & Sutor,05450M
Gloucester City Council,23UE,Council Streetcare Team,HI101,Overtime -Building Maint Staff,1303,Ullenwood Road,13/01/2015,396218,50,NET,Enterprise (Aol) Ltd,06695G
Gloucester City Council,23UE,Council Streetcare Team,HI101,Signs / Nameplates,3039,Copperfield Close,13/01/2015,396235,135,NET,Enterprise (Aol) Ltd,06695G
Gloucester City Council,23UE,Council Streetcare Team,HI101,Signs / Nameplates,3039,Midsummer Walk,13/01/2015,396236,135,NET,Enterprise (Aol) Ltd,06695G
Gloucester City Council,23UE,Countryside Unit,LP201,Publications,5060,ANNUAL SUBSCRIPTION,13/01/2015,395713,16,NET,British Wildlife Publishing,04566A
Gloucester City Council,23UE,Docks Complex - Telephones,RB120,Telephones And Fax,5410,Charges September 2014,13/01/2015,392089,1882.62,NET,Everything Everywhere Ltd (T-Mobile),57543S
Gloucester City Council,23UE,Emergency Out Of Hours Calls,RB301,Fees For Services Received,5350,Monthly Fee January 2015,13/01/2015,396240,226.69,NET,Office Response,09439K
Gloucester City Council,23UE,Environmental Planning,LM340,Fees For Services Received,5350,"Grounds Maintenance, Kingsway",13/01/2015,396153,1000,NET,Charlton Abbotts Forestry Ltd,14989X
Gloucester City Council,23UE,Environmental Planning,LM340,Fees For Services Received,5350,Kingsway Sports Ground,13/01/2015,396190,2598,NET,Greenfields Garden Services Ltd,48130G
Gloucester City Council,23UE,Financial Services,RT200,Training Course Fees,5367,Exam Fees 15/01/2015,13/01/2015,396588,76.5,NET,Pitman Training Cheltenham,15476Z
Gloucester City Council,23UE,Financial Services,RT200,Training Course Fees,5367,Exam Fees 15/01/2015,13/01/2015,396589,73.5,NET,Pitman Training Cheltenham,15476Z
Gloucester City Council,23UE,REDACTED,REDACTED,REDACTED,REDACTED,REDACTED,13/01/2015,REDACTED,890.37,NET,REDACTED,REDACTED
Gloucester City Council,23UE,REDACTED,REDACTED,REDACTED,REDACTED,REDACTED,13/01/2015,REDACTED,250,NET,REDACTED,REDACTED
Gloucester City Council,23UE,Internal Audit,RT300,Basic Pay - Temporary Staff,2751,Temporary Staff,13/01/2015,396041,1295,NET,Robert Half Ltd,03959K
Gloucester City Council,23UE,Internal Health & Safety,EH110,Other Minor Supplies Services,5590,conference fees,13/01/2015,396587,330,NET,Local Authority Event Organisers Group,13496M
Gloucester City Council,23UE,REDACTED,REDACTED,REDACTED,REDACTED,REDACTED,13/01/2015,REDACTED,40,NET,REDACTED,REDACTED
Gloucester City Council,23UE,Senior Management Restructurin,RO200,Pension Contribs Incl Backf,2901,Redundancy Cost,13/01/2015,393927,122.74,NET,Gloucestershire County Council,10614L
Gloucester City Council,23UE,The Arbor,HC501,Maint Agreements - Buildings,3010,MONTHLY WARRANTY,13/01/2015,396099,61.58,NET,Caffeica Ltd,11923J
Gloucester City Council,23UE,Tree Planting Grant Funded,LY150,Contract Payments,0020,"The Richmonds, plants",13/01/2015,396191,2456,CAP,Greenfields Garden Services Ltd,48130G
Gloucester City Council,23UE,Cemeteries,HC300,Operational Materials,5070,Uniforms,14/01/2015,396157,29.5,NET,Safpro Industrial Supply Co,39190W
Gloucester City Council,23UE,City Museum And Art Gallery,LM200,Security Services Fees,5351,Alarm Activation Call Out,14/01/2015,396150,62,NET,Glevum Security Ltd,03249B
Gloucester City Council,23UE,REDACTED,REDACTED,REDACTED,REDACTED,REDACTED,14/01/2015,REDACTED,7,NET,REDACTED,REDACTED
Gloucester City Council,23UE,Client Revs & Bens Contract,RT240,Bailiffs Fees,5368,VAT on fees collected,14/01/2015,396159,0,NET,Phoenix Commercial Collections Ltd,13435J
Gloucester City Council,23UE,Client Revs & Bens Contract,RT240,Bank Charges And Adjustments,5950,Probate Search,14/01/2015,396610,10,NET,Hm Courts & Tribunals Service,12497V
Gloucester City Council,23UE,Countryside Unit,LP201,Maint Of Grounds - General,3030,Various Items,14/01/2015,396293,87.98,NET,Machine Mart Ltd*,55207G
Gloucester City Council,23UE,Gloucester Guildhall,LA100,Cleaning Materials,3600,Disposal Unit,14/01/2015,396201,148.2,NET,Ocs Group Uk Limited T/A Cannon,06506A
Gloucester City Council,23UE,REDACTED,REDACTED,REDACTED,REDACTED,REDACTED,14/01/2015,REDACTED,0.83,NET,REDACTED,REDACTED
Gloucester City Council,23UE,REDACTED,REDACTED,REDACTED,REDACTED,REDACTED,14/01/2015,REDACTED,1.98,NET,REDACTED,REDACTED
Gloucester City Council,23UE,Guildhall Events,LA200,Artists Fees,5355,Dick Whitington and his cat,14/01/2015,396608,2259,NET,Tyger Productions,14645K
Gloucester City Council,23UE,REDACTED,REDACTED,REDACTED,REDACTED,REDACTED,14/01/2015,REDACTED,1488.58,NET,REDACTED,REDACTED
Gloucester City Council,23UE,REDACTED,REDACTED,REDACTED,REDACTED,REDACTED,14/01/2015,REDACTED,270,NET,REDACTED,REDACTED
Gloucester City Council,23UE,REDACTED,REDACTED,REDACTED,REDACTED,REDACTED,14/01/2015,REDACTED,150,NET,REDACTED,REDACTED
Gloucester City Council,23UE,Investment Property,RB500,Lift Maintenance,3051,"Inspection, City Museum",14/01/2015,396581,121.25,NET,Pickerings Europe Ltd*,58816U
Gloucester City Council,23UE,Investment Property,RB500,Lift Maintenance,3051,"Inspection, Folk Musuem",14/01/2015,396419,106.25,NET,Pickerings Europe Ltd*,58816U
Gloucester City Council,23UE,Investment Property,RB500,Lift Maintenance,3051,"Inspection, Guildhall",14/01/2015,396545,242.5,NET,Pickerings Europe Ltd*,58816U
Gloucester City Council,23UE,Investment Property,RB500,Lift Maintenance,3051,"Inspections, GL1",14/01/2015,396542,242.5,NET,Pickerings Europe Ltd*,58816U
Gloucester City Council,23UE,Investment Property,RB500,Lift Maintenance,3051,"Inspections, Guildhall, Museums",14/01/2015,396544,481.75,NET,Pickerings Europe Ltd*,58816U
Gloucester City Council,23UE,Investment Property,RB500,Lift Maintenance,3051,"Inspections, Herbert Warehouse",14/01/2015,396543,373.75,NET,Pickerings Europe Ltd*,58816U
Gloucester City Council,23UE,Legal Services,RS200,Basic Pay - Temporary Staff,2751,Temporary Staff,14/01/2015,395709,1066.41,NET,Venn Group Ltd,04339P
Gloucester City Council,23UE,Legal Services,RS200,Basic Pay - Temporary Staff,2751,Temporary Staff,14/01/2015,396206,906.53,NET,Venn Group Ltd,04339P
Gloucester City Council,23UE,Legal Services,RS200,Basic Pay - Temporary Staff,2751,Temporary Staff,14/01/2015,395765,631.83,NET,Sellick Partnership Group Ltd,11057C
Gloucester City Council,23UE,Legal Services,RS200,Basic Pay - Temporary Staff,2751,Temporary Staff,14/01/2015,396155,550,NET,Paystream My Max Limited,15049Z
Gloucester City Council,23UE,Legal Services,RS200,Basic Pay - Temporary Staff,2751,Temporary Staff,14/01/2015,395196,682.5,NET,Michael Page International Recruitment Ltd,06601P
Gloucester City Council,23UE,Legal Services,RS200,Basic Pay - Temporary Staff,2751,Temporary Staff,14/01/2015,395801,840,NET,Michael Page International Recruitment Ltd,06601P
Gloucester City Council,23UE,Legal Services,RS200,Basic Pay - Temporary Staff,2751,Temporary Staff,14/01/2015,395724,1549.93,NET,Venn Group Ltd,04339P
Gloucester City Council,23UE,Museum Phase 2 Hlf,GY001,Contract Payments,0020,Lighting Design 19/12/2014,14/01/2015,396152,3847.33,CAP,It Does Ltd,15108J
Gloucester City Council,23UE,National Express,LT105,Materials For Sale,5080,December 2014,14/01/2015,396574,10171.35,NET,National Express Ltd,31455K
Gloucester City Council,23UE,National Express,LT105,Sale Of Goods And Services,9230,December 2014,14/01/2015,396574,-986.32,NET,National Express Ltd,31455K
Gloucester City Council,23UE,Tourism Marketing,LT100,Other Minor Supplies Services,5590,Disposal Unit,14/01/2015,396199,6.12,NET,Ocs Group Uk Limited T/A Cannon,06506A
Gloucester City Council,23UE,Civica Contract Revs & Bens,RT250,Contracted Services,6970,Revenues & Benefits Service Feb 2015,15/01/2015,396227,138572.7,NET,Civica Uk Ltd,10841X
Gloucester City Council,23UE,Countryside Unit,LP201,Operational Equipment <5000,5012,Various Items,15/01/2015,396188,43.29,NET,Countrywide Farmers*,55687J
Gloucester City Council,23UE,Docks Complex - Catering Servs,RB110,Catering Provisions -Food,5110,Food,15/01/2015,396546,481.54,NET,3663,55585U
Gloucester City Council,23UE,Docks Complex - Catering Servs,RB110,Catering Provisions -Food,5110,Food,15/01/2015,396547,267.69,NET,3663,55585U
Gloucester City Council,23UE,Docks Complex - Catering Servs,RB110,Catering Provisions -Food,5110,Food,15/01/2015,396548,66.19,NET,Total Produce Gloucester,12645E
Gloucester City Council,23UE,Docks Complex - Catering Servs,RB110,Catering Provisions -Food,5110,Food,15/01/2015,396549,70.37,NET,Total Produce Gloucester,12645E
Gloucester City Council,23UE,Docks Complex - Catering Servs,RB110,Catering Provisions -Food,5110,Food,15/01/2015,396550,29,NET,Total Produce Gloucester,12645E
Gloucester City Council,23UE,Docks Complex - Catering Servs,RB110,Catering Provisions -Food,5110,Food,15/01/2015,396551,8.65,NET,Total Produce Gloucester,12645E
Gloucester City Council,23UE,Docks Complex - Catering Servs,RB110,Catering Provisions -Food,5110,Food,15/01/2015,396552,8.64,NET,Total Produce Gloucester,12645E
Gloucester City Council,23UE,Docks Complex - Catering Servs,RB110,Catering Provisions -Food,5110,Food,15/01/2015,396553,51.99,NET,Total Produce Gloucester,12645E
Gloucester City Council,23UE,Docks Complex - Catering Servs,RB110,Catering Provisions -Food,5110,Food,15/01/2015,396554,28.01,NET,Total Produce Gloucester,12645E
Gloucester City Council,23UE,Docks Complex - Catering Servs,RB110,Catering Provisions -Food,5110,Food,15/01/2015,396555,27.16,NET,Total Produce Gloucester,12645E
Gloucester City Council,23UE,Docks Complex - Catering Servs,RB110,Catering Provisions -Food,5110,Food,15/01/2015,396556,24.69,NET,Total Produce Gloucester,12645E
Gloucester City Council,23UE,Docks Complex - Catering Servs,RB110,Catering Provisions -Food,5110,Food,15/01/2015,396557,38.45,NET,Total Produce Gloucester,12645E
Gloucester City Council,23UE,Docks Complex - Catering Servs,RB110,Catering Provisions -Food,5110,Food,15/01/2015,396558,27.77,NET,Total Produce Gloucester,12645E
Gloucester City Council,23UE,Docks Complex - Catering Servs,RB110,Catering Provisions -Food,5110,Food,15/01/2015,396559,24.25,NET,Total Produce Gloucester,12645E
Gloucester City Council,23UE,Docks Complex - Catering Servs,RB110,Catering Provisions -Food,5110,Food,15/01/2015,396560,16.33,NET,Total Produce Gloucester,12645E
Gloucester City Council,23UE,Docks Complex - Catering Servs,RB110,Catering Provisions -Food,5110,Food,15/01/2015,396561,26.92,NET,Total Produce Gloucester,12645E
Gloucester City Council,23UE,Docks Complex - Catering Servs,RB110,Catering Provisions -Food,5110,Food,15/01/2015,396562,22.3,NET,Total Produce Gloucester,12645E
Gloucester City Council,23UE,Docks Complex - Catering Servs,RB110,Catering Provisions -Food,5110,Food,15/01/2015,396563,31.89,NET,Total Produce Gloucester,12645E
Gloucester City Council,23UE,Docks Complex - Catering Servs,RB110,Catering Provisions -Food,5110,Food,15/01/2015,396564,49.62,NET,Total Produce Gloucester,12645E
Gloucester City Council,23UE,Docks Complex - Catering Servs,RB110,Catering Provisions -Food,5110,Food,15/01/2015,396565,27.98,NET,Total Produce Gloucester,12645E
Gloucester City Council,23UE,Docks Complex - Catering Servs,RB110,Catering Provisions -Food,5110,Food,15/01/2015,396566,28.71,NET,Total Produce Gloucester,12645E
Gloucester City Council,23UE,Docks Complex - Catering Servs,RB110,Catering Provisions -Food,5110,Food,15/01/2015,396567,7.43,NET,Total Produce Gloucester,12645E
Gloucester City Council,23UE,Docks Complex - Catering Servs,RB110,Catering Provisions -Food,5110,Food,15/01/2015,396568,30.28,NET,Total Produce Gloucester,12645E
Gloucester City Council,23UE,Docks Complex - Catering Servs,RB110,Catering Provisions -Food,5110,Food,15/01/2015,396569,25.79,NET,Total Produce Gloucester,12645E
Gloucester City Council,23UE,Docks Complex - Catering Servs,RB110,Catering Provisions -Food,5110,Food,15/01/2015,396570,11.02,NET,Total Produce Gloucester,12645E
Gloucester City Council,23UE,Docks Complex - Catering Servs,RB110,Catering Provisions -Food,5110,Food,15/01/2015,396571,8.64,NET,Total Produce Gloucester,12645E
Gloucester City Council,23UE,Docks Complex - Catering Servs,RB110,Catering Provisions -Food,5110,Food,15/01/2015,396572,49.38,NET,Total Produce Gloucester,12645E
Gloucester City Council,23UE,Docks Complex - Catering Servs,RB110,Catering Provisions -Food,5110,Food,15/01/2015,396573,75.44,NET,Total Produce Gloucester,12645E
Gloucester City Council,23UE,Docks Complex - Catering Servs,RB110,Catering Provisions -Food,5110,Food,15/01/2015,396583,482.01,NET,3663,55585U
Gloucester City Council,23UE,Docks Complex - Catering Servs,RB110,Catering Provisions -Food,5110,Food,15/01/2015,396584,322.22,NET,3663,55585U
Gloucester City Council,23UE,Docks Complex - Catering Servs,RB110,Catering Provisions -Food,5110,Food,15/01/2015,396585,198.67,NET,3663,55585U
Gloucester City Council,23UE,Dwelling Improvements,BY008,Contract Payments,0020,NOVEMBER 2014 CAPITAL FEES,15/01/2015,395500,1026226.15,CAP,Gloucester City Homes,05244T
Gloucester City Council,23UE,Gf Lifelinks,CH180,Contracted Services,6970,January Management Fee 2015,15/01/2015,396181,5270.83,NET,Gloucester City Homes,05244T
Gloucester City Council,23UE,REDACTED,REDACTED,REDACTED,REDACTED,REDACTED,15/01/2015,REDACTED,159.61,NET,REDACTED,REDACTED
Gloucester City Council,23UE,Legal Services,RS200,Basic Pay - Temporary Staff,2751,Temporary Staff,15/01/2015,396205,656.42,NET,Venn Group Ltd,04339P
Gloucester City Council,23UE,Retail Market - Landlord,HM300,General Repair/Maint Buildings,3000,Call out 03/10/2014,15/01/2015,393269,207.75,NET,Pakawaste Ltd,02969S
Gloucester City Council,23UE,Gates Streets,GY014,Contract Payments,0020,BINS,16/01/2015,396100,1467.18,CAP,Omos Ltd,15046F
Gloucester City Council,23UE,Legal Services,RS200,Legal Fees,5731,Fee Payment to register a legal charge,16/01/2015,396795,13,NET,Companies House,58954E
Gloucester City Council,23UE,Legal Services,RS200,Legal Fees,5731,Fees Payable for registering a charge,16/01/2015,396790,13,NET,Companies House,58954E
Gloucester City Council,23UE,Off Street Car Parks,PP110,Rents,3200,car park eastgate ctr,16/01/2015,396018,63528.19,NET,Workman Llp,11021M
Gloucester City Council,23UE,Off Street Car Parks,PP110,Service Charges,3020,car park eastgate ctr,16/01/2015,396018,2083.5,NET,Workman Llp,11021M
Gloucester City Council,23UE,Off Street Car Parks,PP110,Service Charges,3020,pedestrian access,16/01/2015,396017,982.25,NET,Workman Llp,11021M
Gloucester City Council,23UE,Vehicles,RS140,Fuel,4012,Fuel,16/01/2015,396538,334.47,NET,Allstar Business Solutions Ltd (Arval),06594A
Gloucester City Council,23UE,Contact Centre,RB300,Basic Pay -Admin /Prof Staff,2601,Temporary Staff,19/01/2015,396537,178.64,NET,One To One Recruitment,04752H
Gloucester City Council,23UE,Docks Complex - Services,RB100,Cleaning Materials,3600,Cleaning Materials,19/01/2015,395491,90.87,NET,Core Hygiene Ltd,03885P
Gloucester City Council,23UE,Dog Warden,HE400,Operational Equipment <5000,5012,STICKERS,19/01/2015,396783,840,NET,Vital Signs,56032J
Gloucester City Council,23UE,REDACTED,REDACTED,REDACTED,REDACTED,REDACTED,19/01/2015,REDACTED,244.99,NET,REDACTED,REDACTED
Gloucester City Council,23UE,REDACTED,REDACTED,REDACTED,REDACTED,REDACTED,19/01/2015,REDACTED,250,NET,REDACTED,REDACTED
Gloucester City Council,23UE,REDACTED,REDACTED,REDACTED,REDACTED,REDACTED,19/01/2015,REDACTED,100,NET,REDACTED,REDACTED
Gloucester City Council,23UE,REDACTED,REDACTED,REDACTED,REDACTED,REDACTED,19/01/2015,REDACTED,2711.47,NET,REDACTED,REDACTED
Gloucester City Council,23UE,REDACTED,REDACTED,REDACTED,REDACTED,REDACTED,19/01/2015,REDACTED,240,NET,REDACTED,REDACTED
Gloucester City Council,23UE,Hackney Carriages,HL100,Fees For Services Received,5350,DVLA CHECKS,19/01/2015,396673,65.25,NET,Intelligent Data Systems (Uk) Ltd,11067G
Gloucester City Council,23UE,Homelessness Prevention,CH122,Basic Pay - Temporary Staff,2751,Temporary Staff,19/01/2015,396638,886.42,NET,Building Recruitment Company Ltd,55385E
Gloucester City Council,23UE,Investment Property,RB500,Consultants Fees,5349,NEEDHAM AVE,19/01/2015,396685,200,NET,Alder King*,02367D
Gloucester City Council,23UE,Investment Property,RB500,Consultants Fees,5349,NETHERIGE FARM,19/01/2015,396670,400,NET,Alder King*,02367D
Gloucester City Council,23UE,Licences,HE510,Reimbursements,5591,Rebate for Licence Fees paid,19/01/2015,396792,13965,NET,Cocktails Ltd,72501RV
Gloucester City Council,23UE,Off Street Car Parks,PP110,Rents,3200,Car Park Office,19/01/2015,396016,125,NET,Workman Llp,11021M
Gloucester City Council,23UE,Off Street Car Parks,PP110,Service Charges,3020,Car Park Office,19/01/2015,396016,267.75,NET,Workman Llp,11021M
Gloucester City Council,23UE,Registration Of Electors,RS400,Fees For Services Received,5350,BALLOT BOXES,19/01/2015,396785,1400,NET,Central Tools And Pressings Ltd,15471K
Gloucester City Council,23UE,Retail Market - Landlord,HM300,Window Cleaning,3610,JAN 2015,19/01/2015,396782,140,NET,Cornwall Cleaning Services,14050A
Gloucester City Council,23UE,The Arbor,HC501,Catering Provisions -Food,5110,FOOD,19/01/2015,396680,207.66,NET,Janes Pantry,24500W
Gloucester City Council,23UE,Allotments,HI104,Water Supply,3400,ACCT 7890105225,20/01/2015,396591,336.05,NET,Severn Trent Water,01823H
Gloucester City Council,23UE,Asset Management,RS300,Basic Pay - Temporary Staff,2751,DEC 2014,20/01/2015,396634,4325,NET,Ardley Associates,09369F
Gloucester City Council,23UE,Asset Management,RS300,Basic Pay - Temporary Staff,2751,Temporary Staff,20/01/2015,396532,1288.64,NET,Hays Specialist Recruitment Ltd,55516P
Gloucester City Council,23UE,Blackfriars,LA609,Water Supply,3400,ACCT 7890105225,20/01/2015,396591,507.61,NET,Severn Trent Water,01823H
Gloucester City Council,23UE,Building Control,PT400,Basic Pay - Temporary Staff,2751,Temporary Staff,20/01/2015,396215,1529.66,NET,The Oyster Partnership Limited,14900T
Gloucester City Council,23UE,Building Control,PT400,Basic Pay - Temporary Staff,2751,Temporary Staff,20/01/2015,396666,480,NET,The Oyster Partnership Limited,14900T
Gloucester City Council,23UE,Building Control,PT400,Basic Pay - Temporary Staff,2751,Temporary Staff,20/01/2015,396667,1101.13,NET,The Oyster Partnership Limited,14900T
Gloucester City Council,23UE,Building Control,PT400,Basic Pay - Temporary Staff,2751,Temporary Staff,20/01/2015,396216,1623.8,NET,The Oyster Partnership Limited,14900T
Gloucester City Council,23UE,Building Control,PT400,Vocational Training,2970,Training Course fees,20/01/2015,396636,325,NET,Association Of Building Engineers,01863V
Gloucester City Council,23UE,Building Control,PT400,Vocational Training,2970,Training Course fees,20/01/2015,396618,125,NET,Association Of Building Engineers,01863V
Gloucester City Council,23UE,Business Support,PT250,Publications,5060,NEWSPAPERS,20/01/2015,396632,164.15,NET,Ymk Supermarket,55281U
Gloucester City Council,23UE,Bus Station,RB400,Water Supply,3400,ACCT 7890105225,20/01/2015,396591,163.17,NET,Severn Trent Water,01823H
Gloucester City Council,23UE,Cctv Revenue Budget,FP501,Security Equipment Serv/Repair,3038,CCTV 2014,20/01/2015,396617,1726.67,NET,Quadrant Security Group Ltd,05109A
Gloucester City Council,23UE,Cctv Revenue Budget,FP501,Security Equipment Serv/Repair,3038,REDCARE DEC-MAR 2015,20/01/2015,396662,11748.12,NET,Bt Redcare,04692U
Gloucester City Council,23UE,Celebratory Lights,LT302,Christmas Lights,5024,PUBLICATION,20/01/2015,396650,347.4,NET,Riba Enterprises,09988U
Gloucester City Council,23UE,Cemeteries,HC300,Clothing,5200,CLOTHING,20/01/2015,396669,203.73,NET,REDACTED,REDACTED
Gloucester City Council,23UE,Cemeteries,HC300,Maint Of Grounds - General,3030,PLYWOOD,20/01/2015,396767,647.2,NET,Millington & Ramstedt Ltd,29815S
Gloucester City Council,23UE,Cemeteries,HC300,Routine R And M - Vehicles,4011,PEDAL,20/01/2015,396635,9.28,NET,Garden Machinery Gloucester,55641K
Gloucester City Council,23UE,Cems/Crems Admin,HC100,Subscriptions,5600,MEMBERSHIP 2015,20/01/2015,396646,865.4,NET,Federation Of Burial And Crem Authorities,49758R
Gloucester City Council,23UE,Civica Contract Revs & Bens,RT250,Contracted Services,6970,PENSION SEPT 2014,20/01/2015,396648,12348.65,NET,Civica Uk Ltd,10841X
Gloucester City Council,23UE,Civica It Contract,RT270,Contracted Services,6970,PENSION NOV 2014,20/01/2015,396613,697.86,NET,Civica Uk Ltd,10841X
Gloucester City Council,23UE,Civica It Contract,RT270,Contracted Services,6970,PENSION OCT 2014,20/01/2015,396614,697.88,NET,Civica Uk Ltd,10841X
Gloucester City Council,23UE,Client Revs & Bens Contract,RT240,Fees For Services Received,5350,NEW BURDENS,20/01/2015,396647,562,NET,Civica Uk Ltd,10841X
Gloucester City Council,23UE,Contact Centre,RB300,Basic Pay -Admin /Prof Staff,2601,Temporary Staff,20/01/2015,395993,638,NET,Cps Anystaff Recruitment Ltd,13945D
Gloucester City Council,23UE,Council Streetcare Team,HI101,Maint Of Grounds - General,3030,FOOTBALL GOALS,20/01/2015,396645,2160,NET,Stadia Sports International At Broxap,13032M
Gloucester City Council,23UE,Council Streetcare Team,HI101,Maint Of Grounds - General,3030,SIGNs,20/01/2015,396656,71.77,NET,Severn Signs Ltd,49841D
Gloucester City Council,23UE,Council Streetcare Team,HI101,Signs / Nameplates,3039,LITTLE WALK/MANDEVILLE CLOSE,20/01/2015,396661,185.2,NET,Enterprise (Aol) Ltd,06695G
Gloucester City Council,23UE,Council Streetcare Team,HI101,Water Supply,3400,ACCT 7890105225,20/01/2015,396591,692.22,NET,Severn Trent Water,01823H
Gloucester City Council,23UE,Countryside Unit,LP201,Major R And M - Vehicles,4010,PARTS,20/01/2015,396655,514.13,NET,Loxston Groundcare,14309F
Gloucester City Council,23UE,Countryside Unit,LP201,Routine R And M - Vehicles,4011,PARTS,20/01/2015,396655,242.31,NET,Loxston Groundcare,14309F
Gloucester City Council,23UE,Countryside Unit,LP201,Water Supply,3400,ACCT 7890105225,20/01/2015,396591,181.33,NET,Severn Trent Water,01823H
Gloucester City Council,23UE,Crematorium,HC200,Memorial Plaques,5053,PLAQUES,20/01/2015,396664,264,NET,Arkell & Hurcombe,59812T
Gloucester City Council,23UE,Crematorium,HC200,Memorial Plaques,5053,PLAQUES,20/01/2015,396665,102,NET,Arkell & Hurcombe,59812T
Gloucester City Council,23UE,Crematorium,HC200,Water Supply,3400,ACCT 7890105225,20/01/2015,396591,36.35,NET,Severn Trent Water,01823H
Gloucester City Council,23UE,Development Management,PT200,Microfilming / Cd-Rom Storage,5330,DEC 2014,20/01/2015,396657,27.14,NET,Transmedia Technology Ltd,08635T
Gloucester City Council,23UE,Disabled Facilities Grants,CY013,Disabled Facility Grants,0074,Disabled Facilities Grant,20/01/2015,396819,3343.67,CAP,Mears Home Improvement Ltd,00096G
Gloucester City Council,23UE,Disabled Facilities Grants,CY013,Disabled Facility Grants,0074,Disabled Facilities Grant,20/01/2015,396817,4001.33,CAP,Mears Home Improvement Ltd,00096G
Gloucester City Council,23UE,Disabled Facilities Grants,CY013,Disabled Facility Grants,0074,Disabled Facilities Grant,20/01/2015,396818,5675.99,CAP,Mears Home Improvement Ltd,00096G
Gloucester City Council,23UE,Docks Complex - Catering Servs,RB110,Catering Provisions -Food,5110,Food,20/01/2015,396720,18.64,NET,Total Produce Gloucester,12645E
Gloucester City Council,23UE,Docks Complex - Catering Servs,RB110,Catering Provisions -Food,5110,Food,20/01/2015,396721,21.07,NET,Total Produce Gloucester,12645E
Gloucester City Council,23UE,Docks Complex - Catering Servs,RB110,Catering Provisions -Food,5110,Food,20/01/2015,396722,24.07,NET,Total Produce Gloucester,12645E
Gloucester City Council,23UE,Docks Complex - Catering Servs,RB110,Catering Provisions -Food,5110,Food,20/01/2015,396723,5.72,NET,Total Produce Gloucester,12645E
Gloucester City Council,23UE,Docks Complex - Catering Servs,RB110,Catering Provisions -Food,5110,Food,20/01/2015,396724,41.9,NET,Total Produce Gloucester,12645E
Gloucester City Council,23UE,Docks Complex - Catering Servs,RB110,Catering Provisions -Food,5110,Food,20/01/2015,396725,32.27,NET,Total Produce Gloucester,12645E
Gloucester City Council,23UE,Docks Complex - Catering Servs,RB110,Catering Provisions -Food,5110,Food,20/01/2015,396726,39.88,NET,Total Produce Gloucester,12645E
Gloucester City Council,23UE,Docks Complex - Catering Servs,RB110,Catering Provisions -Food,5110,Food,20/01/2015,396727,45.72,NET,Total Produce Gloucester,12645E
Gloucester City Council,23UE,Docks Complex - Catering Servs,RB110,Catering Provisions -Food,5110,Food,20/01/2015,396728,8.64,NET,Total Produce Gloucester,12645E
Gloucester City Council,23UE,Docks Complex - Catering Servs,RB110,Catering Provisions -Food,5110,Food,20/01/2015,396729,73,NET,Total Produce Gloucester,12645E
Gloucester City Council,23UE,Docks Complex - Catering Servs,RB110,Catering Provisions -Food,5110,Food,20/01/2015,396730,17.08,NET,Total Produce Gloucester,12645E
Gloucester City Council,23UE,Docks Complex - Catering Servs,RB110,Catering Provisions -Food,5110,Food,20/01/2015,396731,39.05,NET,Total Produce Gloucester,12645E
Gloucester City Council,23UE,Docks Complex - Catering Servs,RB110,Catering Provisions -Food,5110,Food,20/01/2015,396732,18.38,NET,Total Produce Gloucester,12645E
Gloucester City Council,23UE,Docks Complex - Catering Servs,RB110,Catering Provisions -Food,5110,Food,20/01/2015,396733,13.17,NET,Total Produce Gloucester,12645E
Gloucester City Council,23UE,Docks Complex - Catering Servs,RB110,Catering Provisions -Food,5110,Food,20/01/2015,396734,40.08,NET,Total Produce Gloucester,12645E
Gloucester City Council,23UE,Docks Complex - Catering Servs,RB110,Catering Provisions -Food,5110,Food,20/01/2015,396735,17.08,NET,Total Produce Gloucester,12645E
Gloucester City Council,23UE,Docks Complex - Catering Servs,RB110,Catering Provisions -Food,5110,Food,20/01/2015,396736,30.77,NET,Total Produce Gloucester,12645E
Gloucester City Council,23UE,Docks Complex - Catering Servs,RB110,Catering Provisions -Food,5110,Food,20/01/2015,396737,18.64,NET,Total Produce Gloucester,12645E
Gloucester City Council,23UE,Docks Complex - Catering Servs,RB110,Catering Provisions -Food,5110,Food,20/01/2015,396738,18.52,NET,Total Produce Gloucester,12645E
Gloucester City Council,23UE,Docks Complex - Catering Servs,RB110,Catering Provisions -Food,5110,Food,20/01/2015,396739,38.85,NET,Total Produce Gloucester,12645E
Gloucester City Council,23UE,Docks Complex - Catering Servs,RB110,Catering Provisions -Food,5110,Food,20/01/2015,396740,28.63,NET,Total Produce Gloucester,12645E
Gloucester City Council,23UE,Docks Complex - Catering Servs,RB110,Catering Provisions -Food,5110,Food,20/01/2015,396741,24.69,NET,Total Produce Gloucester,12645E
Gloucester City Council,23UE,Docks Complex - Catering Servs,RB110,Catering Provisions -Food,5110,Food,20/01/2015,396742,26.2,NET,Total Produce Gloucester,12645E
Gloucester City Council,23UE,Docks Complex - Catering Servs,RB110,Catering Provisions -Food,5110,Food,20/01/2015,396743,39.49,NET,Total Produce Gloucester,12645E
Gloucester City Council,23UE,Docks Complex - Catering Servs,RB110,Catering Provisions -Food,5110,Food,20/01/2015,396744,36.76,NET,Total Produce Gloucester,12645E
Gloucester City Council,23UE,Docks Complex - Catering Servs,RB110,Catering Provisions -Food,5110,Food,20/01/2015,396745,29.54,NET,Total Produce Gloucester,12645E
Gloucester City Council,23UE,Docks Complex - Catering Servs,RB110,Catering Provisions -Food,5110,Food,20/01/2015,396746,8.64,NET,Total Produce Gloucester,12645E
Gloucester City Council,23UE,Docks Complex - Catering Servs,RB110,Catering Provisions -Food,5110,Food,20/01/2015,396747,25.71,NET,Total Produce Gloucester,12645E
Gloucester City Council,23UE,Docks Complex - Catering Servs,RB110,Catering Provisions -Food,5110,Food,20/01/2015,396748,8.64,NET,Total Produce Gloucester,12645E
Gloucester City Council,23UE,Docks Complex - Catering Servs,RB110,Catering Provisions -Food,5110,Food,20/01/2015,396749,20.32,NET,Total Produce Gloucester,12645E
Gloucester City Council,23UE,Docks Complex - Catering Servs,RB110,Catering Provisions -Food,5110,Food,20/01/2015,396750,50.38,NET,Total Produce Gloucester,12645E
Gloucester City Council,23UE,Docks Complex - Catering Servs,RB110,Catering Provisions -Food,5110,Food,20/01/2015,396751,29.66,NET,Total Produce Gloucester,12645E
Gloucester City Council,23UE,Docks Complex - Catering Servs,RB110,Catering Provisions -Food,5110,Food,20/01/2015,396752,23.01,NET,Total Produce Gloucester,12645E
Gloucester City Council,23UE,Docks Complex - Catering Servs,RB110,Catering Provisions -Food,5110,Food,20/01/2015,396753,31.6,NET,Total Produce Gloucester,12645E
Gloucester City Council,23UE,Docks Complex - Catering Servs,RB110,Catering Provisions -Food,5110,Food,20/01/2015,396754,19.18,NET,Total Produce Gloucester,12645E
Gloucester City Council,23UE,Docks Complex - Catering Servs,RB110,Catering Provisions -Food,5110,Food,20/01/2015,396755,35.67,NET,Total Produce Gloucester,12645E
Gloucester City Council,23UE,Docks Complex - Catering Servs,RB110,Catering Provisions -Food,5110,Food,20/01/2015,396756,46.92,NET,Total Produce Gloucester,12645E
Gloucester City Council,23UE,Docks Complex - Catering Servs,RB110,Catering Provisions -Food,5110,Food,20/01/2015,396757,25.09,NET,Total Produce Gloucester,12645E
Gloucester City Council,23UE,Docks Complex - Catering Servs,RB110,Catering Provisions -Food,5110,Food,20/01/2015,396758,46.76,NET,Total Produce Gloucester,12645E
Gloucester City Council,23UE,Docks Complex - Catering Servs,RB110,Catering Provisions -Food,5110,Food,20/01/2015,396759,22.3,NET,Total Produce Gloucester,12645E
Gloucester City Council,23UE,Docks Complex - Catering Servs,RB110,Catering Provisions -Food,5110,Food,20/01/2015,396760,13.62,NET,Total Produce Gloucester,12645E
Gloucester City Council,23UE,Emergency Out Of Hours Calls,RB301,Fees For Services Received,5350,CALLS DEC 2014,20/01/2015,396674,33.22,NET,Office Response,09439K
Gloucester City Council,23UE,Environmental Planning,LM340,Repair/Maint Of Monuments,3004,SPIRIT OF AVIATION PLINTH,20/01/2015,396626,730,NET,A Murray Masonry,13836K
Gloucester City Council,23UE,Folk Museum,LM210,Exhibits And Collections,5038,Various Items,20/01/2015,396582,40.46,NET,Millington & Ramstedt Ltd,29815S
Gloucester City Council,23UE,Gloucester Guildhall,LA100,Cleaning Materials,3600,CLEANING GOODS,20/01/2015,396652,107.14,NET,Gpp Hygiene,06080P
Gloucester City Council,23UE,Gloucester Guildhall,LA100,General Repair/Maint Buildings,3000,Antislip,20/01/2015,396524,69.25,NET,Directa Uk Ltd,05387T
Gloucester City Council,23UE,Green Transport Policy,PJ130,Overtime - Cleaners,2403,SMARTCAR,20/01/2015,396633,287.35,NET,Daimler Fleet Management,07828N
Gloucester City Council,23UE,Guildhall Cinema,LA202,Fees For Services Received,5350,JAN 2015,20/01/2015,396627,214.24,NET,Nft Logistics Ltd,13505N
Gloucester City Council,23UE,REDACTED,REDACTED,REDACTED,REDACTED,REDACTED,20/01/2015,REDACTED,100,NET,REDACTED,REDACTED
Gloucester City Council,23UE,REDACTED,REDACTED,REDACTED,REDACTED,REDACTED,20/01/2015,REDACTED,150,NET,REDACTED,REDACTED
Gloucester City Council,23UE,REDACTED,REDACTED,REDACTED,REDACTED,REDACTED,20/01/2015,REDACTED,19.37,NET,REDACTED,REDACTED
Gloucester City Council,23UE,REDACTED,REDACTED,REDACTED,REDACTED,REDACTED,20/01/2015,REDACTED,18.55,NET,REDACTED,REDACTED
Gloucester City Council,23UE,Guildhall Events,LA200,Advertising And Publicity,5702,Advertisements Dec 2014,20/01/2015,396522,212.47,NET,Local World Ltd,08556P
Gloucester City Council,23UE,Guildhall Events,LA200,Advertising And Publicity,5702,STICKERS,20/01/2015,396676,147.95,NET,4imprint,59494J
Gloucester City Council,23UE,Hackney Carriages,HL100,Other Minor Supplies Services,5590,landscape blue,20/01/2015,395498,24.5,NET,Essentra Packaging & Security Ltd,03936T
Gloucester City Council,23UE,Health Administration,HA200,Printing,5300,Notebooks,20/01/2015,396274,552.2,NET,Food Safety Direct Ltd,07478U
Gloucester City Council,23UE,Health And Safety,HD300,Training Course Fees,5367,Training Fees,20/01/2015,396158,396,NET,Cotswold District Council,49331J
Gloucester City Council,23UE,Homelessness,CH120,Removal And Storage Fees,5513,Removal fees,20/01/2015,396526,123.75,NET,Advanced Removals & Storage Ltd,57142R
Gloucester City Council,23UE,Homelessness,CH120,Removal And Storage Fees,5513,Removal fees,20/01/2015,396528,247.5,NET,Advanced Removals & Storage Ltd,57142R
Gloucester City Council,23UE,Homelessness,CH120,Removal And Storage Fees,5513,Removal fees,20/01/2015,396473,15.43,NET,Advanced Removals & Storage Ltd,57142R
Gloucester City Council,23UE,Homelessness,CH120,Removal And Storage Fees,5513,Removal fees,20/01/2015,396527,69.43,NET,Advanced Removals & Storage Ltd,57142R
Gloucester City Council,23UE,Homelessness Prevention,CH122,Basic Pay - Temporary Staff,2751,Temporary Staff,20/01/2015,396639,899.4,NET,Building Recruitment Company Ltd,55385E
Gloucester City Council,23UE,Homelessness Prevention,CH122,Basic Pay - Temporary Staff,2751,Temporary Staff,20/01/2015,396640,901.44,NET,Building Recruitment Company Ltd,55385E
Gloucester City Council,23UE,Internal Health & Safety,EH110,Other Minor Supplies Services,5590,FIRST AID GOODS,20/01/2015,396615,30.33,NET,St John Ambulance Supplies,57856R
Gloucester City Council,23UE,Investment Property,RB500,Water Supply,3400,ACCT 7890105225,20/01/2015,396591,290.71,NET,Severn Trent Water,01823H
Gloucester City Council,23UE,Off Street Car Parks,PP110,Fees For Services Received,5350,Services Sept & Nov 2014,20/01/2015,393102,509.44,NET,Parkeon Ltd,03238G
Gloucester City Council,23UE,Off Street Car Parks,PP110,Water Supply,3400,ACCT 7890105225,20/01/2015,396591,1634.55,NET,Severn Trent Water,01823H
Gloucester City Council,23UE,Parks Contract Management,LP100,Maint Of Grounds - General,3030,MATSON PLAY AREA,20/01/2015,396659,75.6,NET,Enterprise (Aol) Ltd,06695G
Gloucester City Council,23UE,REDACTED,REDACTED,REDACTED,REDACTED,REDACTED,20/01/2015,REDACTED,20,NET,REDACTED,REDACTED
Gloucester City Council,23UE,Postal Services,RS120,Postages,5400,POSTAGE,20/01/2015,396616,10,NET,Gradko International Ltd,11063B
Gloucester City Council,23UE,Public Conveniences (Client),HI400,Water Supply,3400,ACCT 7890105225,20/01/2015,396591,163.17,NET,Severn Trent Water,01823H
Gloucester City Council,23UE,Registration Of Electors,RS400,Fees For Services Received,5350,Storage Polling Booths Nov 2014,20/01/2015,396241,235,NET,Armstrong Removals,04632N
Gloucester City Council,23UE,Registration Of Electors,RS400,Postages,5400,IER Mailings,20/01/2015,396531,947.79,NET,Royal Mail S.Wales & South West,35830S
Gloucester City Council,23UE,Theatre Tokens,LT106,Materials For Sale,5080,Tokens Sold December 2014,20/01/2015,396536,495,NET,Society Of London Theatre,05656Z
Gloucester City Council,23UE,Theatre Tokens,LT106,Sale Of Goods And Services,9230,Tokens Sold December 2014,20/01/2015,396536,-24.75,NET,Society Of London Theatre,05656Z
Gloucester City Council,23UE,Tic Trading,LT110,Operational Equipment <5000,5012,MARKET STALLS,20/01/2015,396621,170,NET,Glos City Centre Community Partnership,08705X
Gloucester City Council,23UE,Tourism Marketing,LT100,Other Minor Supplies Services,5590,FLAG,20/01/2015,396623,366,NET,Access Displays Ltd,05074U
Gloucester City Council,23UE,Tourism Marketing,LT100,Security Services Fees,5351,ALARM SYSTEM,20/01/2015,396622,294.79,NET,Laser Alarms Ltd,26325V
Gloucester City Council,23UE,Tourism Marketing,LT100,Window Cleaning,3610,NOV 2014,20/01/2015,396624,24,NET,Interserve Fs (Uk) Limited,00442K
Gloucester City Council,23UE,Utilities,PT502,Electricity Supply,3110,UTILITIES TO JAN 2015,20/01/2015,396590,40878.99,NET,West Mercia Energy,11669Z
Gloucester City Council,23UE,Utilities,PT502,Gas Supply,3100,UTILITIES TO JAN 2015,20/01/2015,396590,18.66,NET,West Mercia Energy,11669Z
Gloucester City Council,23UE,REDACTED,REDACTED,REDACTED,REDACTED,REDACTED,20/01/2015,REDACTED,127.5,NET,REDACTED,REDACTED
Gloucester City Council,23UE,REDACTED,REDACTED,REDACTED,REDACTED,REDACTED,21/01/2015,REDACTED,21.25,NET,REDACTED,REDACTED
Gloucester City Council,23UE,Building Control,PT400,Fees For Services Received,5350,electrical testing,21/01/2015,396453,220,NET,Slatter Electrical Ltd,40650B
Gloucester City Council,23UE,Cemeteries,HC300,Basic Pay - Temporary Staff,2751,Grass Cutter December 2014,21/01/2015,396154,1196,NET,Anderson Recruitment Ltd,14646H
Gloucester City Council,23UE,Cemeteries,HC300,Operational Materials,5070,PRESSURE WASHER,21/01/2015,395847,199.96,NET,Machine Mart,56123E
Gloucester City Council,23UE,Cemeteries,HC300,Operational Materials,5070,Various Items,21/01/2015,396458,265,NET,Allstone Sand & Gravel Aggregates Ltd,00940M
Gloucester City Council,23UE,Cemeteries,HC300,Repair/Maint Of Monuments,3004,Fibres,21/01/2015,396472,370.01,NET,Easy Mix Ltd,01403L
Gloucester City Council,23UE,Cemeteries,HC300,Routine R And M - Vehicles,4011,Various Items,21/01/2015,396520,103.5,NET,Garden Machinery Gloucester,55641K
Gloucester City Council,23UE,Cemeteries,HC300,Trade Refuse Tipping Fees,6297,Various Items,21/01/2015,396575,405,NET,Allstone Sand & Gravel Aggregates Ltd,00940M
Gloucester City Council,23UE,Cemeteries,HC300,Trade Refuse Tipping Fees,6297,Various Items,21/01/2015,396577,720,NET,Allstone Sand & Gravel Aggregates Ltd,00940M
Gloucester City Council,23UE,Cemeteries,HC300,Trade Refuse Tipping Fees,6297,"Weekly Hire, Nov- Dec 14",21/01/2015,396470,380,NET,Allstone Sand & Gravel Aggregates Ltd,00940M
Gloucester City Council,23UE,Contact Centre,RB300,Basic Pay -Admin /Prof Staff,2601,Temporary Staff w/e 09/01/2015,21/01/2015,396695,465.74,NET,One To One Recruitment,04752H
Gloucester City Council,23UE,Countryside Unit,LP201,Clothing,5200,CLOTHING,21/01/2015,396683,22.56,NET,Safpro Industrial Supply Co,39190W
Gloucester City Council,23UE,Crematorium,HC200,Memorial Plaques,5053,Plaque & Stake,21/01/2015,396459,91,NET,Steel & Stone (York),57204U
Gloucester City Council,23UE,Crematorium,HC200,National Assist Act Burial Exp,5593,04/12/2014,21/01/2015,396471,783,NET,Selim Smith & Co Funeral Directors,15156X
Gloucester City Council,23UE,Crematorium,HC200,"Seeds, Trees, Plants, Shrubs",3028,Rose Bushes,21/01/2015,396466,23.25,NET,Genus Plant Sourcing,14143S
Gloucester City Council,23UE,Crematorium,HC200,"Seeds, Trees, Plants, Shrubs",3028,Standard Rose,21/01/2015,396467,25,NET,Genus Plant Sourcing,14143S
Gloucester City Council,23UE,Docks Complex - Catering Servs,RB110,Catering Provisions -Food,5110,Food,21/01/2015,396460,20.24,NET,Taynton Farm Foods,09653F
Gloucester City Council,23UE,Docks Complex - Services,RB100,Cleaning Materials,3600,CLEANING GOODS,21/01/2015,396625,12.27,NET,Core Hygiene Ltd,03885P
Gloucester City Council,23UE,Docks Complex - Services,RB100,Cleaning Materials,3600,Cleaning Materials,21/01/2015,396445,38.45,NET,Core Hygiene Ltd,03885P
Gloucester City Council,23UE,Docks Complex - Services,RB100,Cleaning Materials,3600,Cleaning Materials,21/01/2015,396446,82.59,NET,Core Hygiene Ltd,03885P
Gloucester City Council,23UE,Docks Complex - Services,RB100,General Repair/Maint Buildings,3000,Cleaning Dec 2014,21/01/2015,396418,260,NET,Into Cleaning,14609P
Gloucester City Council,23UE,Docks Complex - Services,RB100,Operational Equipment <5000,5012,Office Furniture,21/01/2015,396440,70,NET,Archer Recycling,11021G
Gloucester City Council,23UE,Electrical Investigatory Works,RY142,Contract Payments,0020,22/12/2014 Engineers,21/01/2015,396693,286,CAP,Airvent Systems Limited,51073T
Gloucester City Council,23UE,Gloscat S106,LY073,Contract Payments,0020,"Tree Works, Gloucester Park",21/01/2015,396450,3750,CAP,Greenfields Garden Services Ltd,48130G
Gloucester City Council,23UE,Gloucester Guildhall,LA100,Vocational Training,2970,Photoshop Course,21/01/2015,396452,175,NET,Gloucestershire Enterprise Ltd,18643A
Gloucester City Council,23UE,Guildhall Bar And Caf�,LA210,Catering Provisions -Food,5110,Food Dec 2014,21/01/2015,396700,70.21,NET,Woody's Fruit & Veg,11798L
Gloucester City Council,23UE,Guildhall Bar And Caf�,LA210,Catering Provisions -Liquor,5111,Gloucester Gold,21/01/2015,396463,76,NET,Gloucester Brewery,13373F
Gloucester City Council,23UE,Guildhall Bar And Caf�,LA210,Catering Provisions -Liquor,5111,Gloucester Gold,21/01/2015,396464,95,NET,Gloucester Brewery,13373F
Gloucester City Council,23UE,Guildhall Bar And Caf�,LA210,Hire Of Equipment,5020,Stock Audit 11/12/2014,21/01/2015,396430,90,NET,Fea Audits,08888J
Gloucester City Council,23UE,Homelessness,CH120,Board And Lodging,5515,"Emergency Accomodation, 30/12/2014",21/01/2015,396694,95,NET,Gloucestershire County Council,18650D
Gloucester City Council,23UE,Homelessness,CH120,Removal And Storage Fees,5513,Removal fees,21/01/2015,396427,78.21,NET,Advanced Removals & Storage Ltd,57142R
Gloucester City Council,23UE,REDACTED,REDACTED,REDACTED,REDACTED,REDACTED,21/01/2015,REDACTED,270,NET,REDACTED,REDACTED
Gloucester City Council,23UE,Homelessness,CH120,Vocational Training,2970,Course 12/09/2014,21/01/2015,396428,35,NET,Gloucestershire County Council,18650D
Gloucester City Council,23UE,Homelessness,CH120,Vocational Training,2970,Expenses The Care Act 2014,21/01/2015,396429,1000,NET,Shelter Training,08860H
Gloucester City Council,23UE,Homelessness Prevention,CH122,Basic Pay - Temporary Staff,2751,Temporary Staff,21/01/2015,396642,708.53,NET,Building Recruitment Company Ltd,55385E
Gloucester City Council,23UE,Homelessness Prevention,CH122,Basic Pay - Temporary Staff,2751,Temporary Staff,21/01/2015,396641,434.94,NET,Building Recruitment Company Ltd,55385E
Gloucester City Council,23UE,Investment Property,RB500,Internal Decs - Communal Areas,3050,Engineer 17/10/2014,21/01/2015,396433,181.91,NET,Pickerings Europe Ltd*,58816U
Gloucester City Council,23UE,Investment Property,RB500,Lift Maintenance,3051,"Engineer, GL1 08/10/2014",21/01/2015,396434,47.86,NET,Pickerings Europe Ltd*,58816U
Gloucester City Council,23UE,Investment Property,RB500,Lift Maintenance,3051,"Engineer, GL1 22/09/2014",21/01/2015,396435,153.16,NET,Pickerings Europe Ltd*,58816U
Gloucester City Council,23UE,Legal Services,RS200,Basic Pay - Temporary Staff,2751,Temporary Staff,21/01/2015,396677,1050.6,NET,Venn Group Ltd,04339P
Gloucester City Council,23UE,Legal Services,RS200,Basic Pay - Temporary Staff,2751,Temporary Staff,21/01/2015,396204,1528.99,NET,Venn Group Ltd,04339P
Gloucester City Council,23UE,Legal Services,RS200,Basic Pay - Temporary Staff,2751,Temporary Staff,21/01/2015,396643,750,NET,Paystream My Max Limited,15049Z
Gloucester City Council,23UE,Registration Of Electors,RS400,Printing,5300,IER Mailings Dec 14,21/01/2015,396455,218.28,NET,Alpha Response Print & Mail Ltd,03029U
Gloucester City Council,23UE,Registration Of Electors,RS400,Publications,5060,Election Law,21/01/2015,396456,158,NET,Thomson Reuters,43110M
Gloucester City Council,23UE,Rehousing,CH111,Fees For Services Received,5350,Medical Report,21/01/2015,396517,20.5,NET,Rosebank Health,03041E
Gloucester City Council,23UE,Rehousing,CH111,Vocational Training,2970,Expenses The Care Act 2014,21/01/2015,396429,1120,NET,Shelter Training,08860H
Gloucester City Council,23UE,The Arbor,HC501,Catering Provisions -Food,5110,Food w/e 04/01/2015,21/01/2015,396454,66.04,NET,Janes Pantry,24500W
Gloucester City Council,23UE,Tourism Marketing,LT100,Other Minor Supplies Services,5590,Food,21/01/2015,396697,233.5,NET,Janes Pantry,24500W
Gloucester City Council,23UE,Aspire Admin Charges,LC105,Security Services Fees,5351,February 2015,22/01/2015,396699,181.28,NET,G4s Cash Solutions (Uk) Ltd,04290V
Gloucester City Council,23UE,Blackfriars,LA609,Advertising And Publicity,5702,PRINTING,22/01/2015,396668,1095,NET,Alpha Colour Printers Ltd,00945B
Gloucester City Council,23UE,Cems/Crems Admin,HC100,Security Services Fees,5351,February 2015,22/01/2015,396699,103.33,NET,G4s Cash Solutions (Uk) Ltd,04290V
Gloucester City Council,23UE,City Museum And Art Gallery,LM200,Security Services Fees,5351,February 2015,22/01/2015,396699,90.64,NET,G4s Cash Solutions (Uk) Ltd,04290V
Gloucester City Council,23UE,Client Revs & Bens Contract,RT240,Bailiffs Fees,5368,CTAX FEES,22/01/2015,396672,827.46,NET,Bristow & Sutor,05450M
Gloucester City Council,23UE,Client Revs & Bens Contract,RT240,Bailiffs Fees,5368,VAT ONLY INVOICE,22/01/2015,396663,0,NET,Phoenix Commercial Collections Ltd,13435J
Gloucester City Council,23UE,Client Revs & Bens Contract,RT240,Bailiffs Fees,5368,VAT ONLY INVOICE,22/01/2015,396671,0,NET,Bristow & Sutor,05450M
Gloucester City Council,23UE,Client Revs & Bens Contract,RT240,Security Services Fees,5351,Amendments,22/01/2015,396761,5.84,NET,G4s Cash Solutions (Uk) Ltd,04290V
Gloucester City Council,23UE,Client Revs & Bens Contract,RT240,Security Services Fees,5351,February 2015,22/01/2015,396699,270.81,NET,G4s Cash Solutions (Uk) Ltd,04290V
Gloucester City Council,23UE,Contact Centre,RB300,Basic Pay -Admin /Prof Staff,2601,Temporary Staff,22/01/2015,396442,781,NET,Cps Anystaff Recruitment Ltd,13945D
Gloucester City Council,23UE,Corporate Reporting /Financing,RC504,Fees For Services Received,5350,Childcare Vouchers January 2015,22/01/2015,396447,27.75,NET,Wider Plan Ltd ( Formerly Kiddivouchers),07893B
Gloucester City Council,23UE,Disabled Facilities Grants,CY013,Disabled Facility Grants,0074,Disabled Facilities Grant,22/01/2015,396928,14147.4,CAP,Beard & Tandy,03160V
Gloucester City Council,23UE,Financial Services,RT200,Fees For Services Received,5350,VAT only,22/01/2015,396768,0,NET,Wansbroughs Solicitors,55500F
Gloucester City Council,23UE,Folk Museum,LM210,Security Services Fees,5351,February 2015,22/01/2015,396699,90.64,NET,G4s Cash Solutions (Uk) Ltd,04290V
Gloucester City Council,23UE,Gloucester Guildhall,LA100,Security Services Fees,5351,February 2015,22/01/2015,396699,90.64,NET,G4s Cash Solutions (Uk) Ltd,04290V
Gloucester City Council,23UE,REDACTED,REDACTED,REDACTED,REDACTED,REDACTED,22/01/2015,REDACTED,132.2,NET,REDACTED,REDACTED
Gloucester City Council,23UE,Hmo Licences,HE520,Operational Equipment <5000,5012,Various Items,22/01/2015,396461,1826.75,NET,Canford Audio Plc,07875D
Gloucester City Council,23UE,Homelessness Prevention,CH122,Basic Pay - Temporary Staff,2751,Temporary Staff,22/01/2015,396784,895.08,NET,Building Recruitment Company Ltd,55385E
Gloucester City Council,23UE,Licences,HE510,Gating Orders,5541,"Organs Alley, repair gate lock",22/01/2015,396444,236,NET,Gloucester Street Forge,11069C
Gloucester City Council,23UE,Marchants,LT108,Materials For Sale,5080,Ticket Sales November 2014,22/01/2015,396425,1463,NET,Marchants Coaches Ltd,48151Y
Gloucester City Council,23UE,Nms Contract,HI102,Contracted Services,6970,January 2015,22/01/2015,396576,490613.67,NET,Enterprise (Aol) Ltd,06695G
Gloucester City Council,23UE,Senior Management Restructurin,RO200,Pension Contribs Incl Backf,2901,Pensions Dec 14 & Jan 15,22/01/2015,396698,26386.26,NET,Gloucestershire County Council,10614L
Gloucester City Council,23UE,Tic Rovercard Sales,LT101,Materials For Sale,5080,PERIOD 7,22/01/2015,396619,6027.5,NET,Stagecoach Services Ltd*,56554W
Gloucester City Council,23UE,Tic Rovercard Sales,LT101,Materials For Sale,5080,Sales November 2014,22/01/2015,396426,5383.5,NET,Stagecoach Services Ltd*,56554W
Gloucester City Council,23UE,Tic Rovercard Sales,LT101,Sale Of Goods And Services,9230,PERIOD 7,22/01/2015,396619,-502.29,NET,Stagecoach Services Ltd*,56554W
Gloucester City Council,23UE,Tic Rovercard Sales,LT101,Sale Of Goods And Services,9230,Sales November 2014,22/01/2015,396426,-448.63,NET,Stagecoach Services Ltd*,56554W
Gloucester City Council,23UE,Tic Trading,LT110,Materials For Sale,5080,Sales Dec 2014,22/01/2015,396719,331,NET,REDACTED,REDACTED
Gloucester City Council,23UE,Tic Trading,LT110,Sale Of Goods And Services,9230,Sales Dec 2014,22/01/2015,396719,-27.59,NET,REDACTED,REDACTED
Gloucester City Council,23UE,Tourism Marketing,LT100,Security Services Fees,5351,February 2015,22/01/2015,396699,90.64,NET,G4s Cash Solutions (Uk) Ltd,04290V
Gloucester City Council,23UE,Armscroft Park Flood Mit S106,LY153,Contract Payments,0020,"Armscroft Park, Herbicide Spray",23/01/2015,392535,75,CAP,Greenfields Garden Services Ltd,48130G
Gloucester City Council,23UE,Armscroft Park Flood Mit S106,LY153,Contract Payments,0020,"Armscroft park, Tractor rotorvate",23/01/2015,392536,412.5,CAP,Greenfields Garden Services Ltd,48130G
Gloucester City Council,23UE,Asset Management,RS300,Basic Pay - Temporary Staff,2751,Temporary Staff,23/01/2015,396534,1075.14,NET,Hays Specialist Recruitment Ltd,55516P
Gloucester City Council,23UE,Asset Management,RS300,Basic Pay - Temporary Staff,2751,Temporary Staff,23/01/2015,396533,1113.25,NET,Hays Specialist Recruitment Ltd,55516P
Gloucester City Council,23UE,Asset Management,RS300,Basic Pay - Temporary Staff,2751,Temporary Staff,23/01/2015,396535,1258.13,NET,Hays Specialist Recruitment Ltd,55516P
Gloucester City Council,23UE,Asset Management,RS300,Survey Fees,5381,Eastgate Shopping Centre Fees,23/01/2015,391641,2170.34,NET,Parsons Brinckerhoff Ltd*,56687Z
Gloucester City Council,23UE,Blackfriars,LA609,Operational Equipment <5000,5012,replacement switch,23/01/2015,396993,12.88,NET,Cpc,52980M
Gloucester City Council,23UE,Blackfriars,LA609,Operational Equipment <5000,5012,CREDITED ON 2074850,23/01/2015,396992,124.5,NET,Cpc,52980M
Gloucester City Council,23UE,Business Transformation & Tech,RT700,Computer Hardware Maintenance,5426,Various Items,23/01/2015,396696,488.95,NET,Dell Computers Corporation Ltd,55920C
Gloucester City Council,23UE,Business Transformation & Tech,RT700,Internet Service Provider Fees,5429,Blueyonder Charges Dec 2014,23/01/2015,394234,80,NET,Virgin Media Payments Ltd,09376J
Gloucester City Council,23UE,Business Transformation & Tech,RT700,Internet Service Provider Fees,5429,Blueyonder Charges Nov 14,23/01/2015,394223,80,NET,Virgin Media Payments Ltd,09376J
Gloucester City Council,23UE,Business Transformation & Tech,RT700,Internet Service Provider Fees,5429,Cable Modem Charges Nov 14,23/01/2015,394222,33,NET,Virgin Media Payments Ltd,09376J
Gloucester City Council,23UE,Business Transformation & Tech,RT700,Internet Service Provider Fees,5429,Charges Nov 14,23/01/2015,394224,13.84,NET,Virgin Media Payments Ltd,09376J
Gloucester City Council,23UE,City Museum And Art Gallery,LM200,Security Services Fees,5351,Annual Rental Maintenance,23/01/2015,396292,1013.19,NET,Secom Plc,51471A
Gloucester City Council,23UE,Community Safety Projects,FP500,Basic Pay - Temporary Staff,2751,Temporary Staff,23/01/2015,396688,219,NET,Travail Employment Ltd,49371W
Gloucester City Council,23UE,Contact Centre,RB300,Basic Pay -Admin /Prof Staff,2601,Temporary Staff,23/01/2015,395994,764.5,NET,Cps Anystaff Recruitment Ltd,13945D
Gloucester City Council,23UE,Council Streetcare Team,HI101,Maint Of Grounds - General,3030,"Matson, spray Japanese Knotweed",23/01/2015,387183,25,NET,Greenfields Garden Services Ltd,48130G
Gloucester City Council,23UE,Council Streetcare Team,HI101,Maint Of Paths/Hardstandings,3056,"Matson Park, Fit Bollards",23/01/2015,394346,275,NET,Greenfields Garden Services Ltd,48130G
Gloucester City Council,23UE,Council Streetcare Team,HI101,Window Cleaning,3610,Viewing Chamber Cleaning,23/01/2015,393706,140,NET,Poles Apart Window Cleaning,11636R
Gloucester City Council,23UE,Crematorium,HC200,"Seeds, Trees, Plants, Shrubs",3028,Flower Carpet,23/01/2015,394050,20.82,NET,Wyevale Garden Centres Ltd,50043M
Gloucester City Council,23UE,Disabled Facilities Grants,CY013,Disabled Facility Grants,0074,Disabled Facilities Grant,23/01/2015,397114,1150,CAP,Tpg Disableaids,51324R
Gloucester City Council,23UE,Flooding And Drainage,HE306,Overtime -Building Maint Staff,1303,BLACKBRIDGE,23/01/2015,396654,500,NET,Tcv T/A The Conservation Volunteers,55897V
Gloucester City Council,23UE,General Drainage Works,PY241,Contract Payments,0020,MATSON PARK,23/01/2015,387515,750,CAP,Greenfields Garden Services Ltd,48130G
Gloucester City Council,23UE,Gloscat S106,LY073,Contract Payments,0020,GREENFIELDS GARDEN SERVICES LT,23/01/2015,395738,950,CAP,Greenfields Garden Services Ltd,48130G
Gloucester City Council,23UE,Guildhall Events,LA200,Stationery,5302,Self-Inking Stamps,23/01/2015,396239,71.24,NET,Speedy Stamps Ltd,15074A
Gloucester City Council,23UE,Homelessness,CH120,Basic Pay - Temporary Staff,2751,Temporary Staff,23/01/2015,396692,598.5,NET,Building Recruitment Company Ltd,55385E
Gloucester City Council,23UE,Homelessness,CH120,Fees For Services Received,5350,Medical Report,23/01/2015,397000,20.5,NET,Mitcheldean Surgery,57703U
Gloucester City Council,23UE,REDACTED,REDACTED,REDACTED,REDACTED,REDACTED,23/01/2015,REDACTED,20.5,NET,REDACTED,REDACTED
Gloucester City Council,23UE,Human Resources,EH100,Fees For Services Received,5350,NOV 2014,23/01/2015,396890,365.42,NET,Industrial Medical & Safety Services Ltd,10668L
Gloucester City Council,23UE,Investment Property,RB500,General Repair/Maint Buildings,3000,"Manor Park Gates, cut existing metal tie",23/01/2015,392626,149.52,NET,Rf Gardiner Limited,12299B
Gloucester City Council,23UE,Legal Services,RS200,Basic Pay - Temporary Staff,2751,Temporary Staff,23/01/2015,396644,1536.11,NET,Venn Group Ltd,04339P
Gloucester City Council,23UE,Legal Services,RS200,Publications,5060,PUBLICATION,23/01/2015,396955,225,NET,Thomson Reuters,43110M
Gloucester City Council,23UE,REDACTED,REDACTED,REDACTED,REDACTED,REDACTED,23/01/2015,REDACTED,21,NET,REDACTED,REDACTED
Gloucester City Council,23UE,Northwarehouse,RB150,Repair/Maint Of Fixed Plant,3006,North Warehouse repair works,23/01/2015,397036,47.5,NET,Hewer Facilities Mgt Ltd,05232A
Gloucester City Council,23UE,Pest Control,HD400,Fees For Services Received,5350,advert 24/12/14,23/01/2015,396027,87.65,NET,Local World Ltd,08556P
Gloucester City Council,23UE,Planning Policy,PT300,Fees For Services Received,5350,CONTRACTOR,23/01/2015,396974,900,NET,Carewold Associates Ltd,15474D
Gloucester City Council,23UE,Play Area Refurbishment,LY071,Contract Payments,0020,Various Items,23/01/2015,395324,5633,CAP,Hags-Smp Ltd,00672P
Gloucester City Council,23UE,Rehousing,CH111,Fees For Services Received,5350,Medical Report,23/01/2015,394049,20.5,NET,Dr P Lush & Partners,05680S
Gloucester City Council,23UE,Retail Market - Landlord,HM300,Cleaning / Domestic Equipment,5011,Eastgate Market,23/01/2015,396269,18.93,NET,Initial Washroom Solutions,06143R
Gloucester City Council,23UE,Retail Market - Landlord,HM300,Cleaning Materials,3600,Cleaning Materials,23/01/2015,395499,233.68,NET,Core Hygiene Ltd,03885P
Gloucester City Council,23UE,Retail Market - Landlord,HM300,Clothing,5200,Trousers,23/01/2015,396232,24.55,NET,Safpro Industrial Supply Co,39190W
Gloucester City Council,23UE,Retail Market - Landlord,HM300,Clothing,5200,Uniforms,23/01/2015,394935,234.3,NET,Safpro Industrial Supply Co,39190W
Gloucester City Council,23UE,Retail Market - Landlord,HM300,Clothing,5200,Uniforms,23/01/2015,395509,64.45,NET,Safpro Industrial Supply Co,39190W
Gloucester City Council,23UE,Retail Market - Landlord,HM300,Service Charges,3020,market hall,23/01/2015,396019,11905.5,NET,Workman Llp,11021M
Gloucester City Council,23UE,Retail Market - Landlord,HM300,Sewerage And Environ Charges,3402,Blast- Citrus,23/01/2015,393075,107.88,NET,Aztec Chemicals Ltd,00441M
Gloucester City Council,23UE,Shopmobility,PE200,Maintenance Of Equipment,5030,Various Repairs,23/01/2015,396525,111,NET,Disabled Care & Mobility,12675V
Gloucester City Council,23UE,Swrda Asset Transfer,RY184,Capital General Repairs & Main,0013,Barbican Car park,23/01/2015,393675,254,CAP,Ken Pink Plant Hire Ltd,56884V
Gloucester City Council,23UE,Swrda Asset Transfer,RY184,Capital General Repairs & Main,0013,Labour time 21/10/2014,23/01/2015,393346,225.5,CAP,Parkeon Ltd,03238G
Gloucester City Council,23UE,Swrda Asset Transfer,RY184,Capital General Repairs & Main,0013,VISIT 25/11/14 BARBICAN CP,23/01/2015,394541,475.98,CAP,Roadmark Ltd,37743T
Gloucester City Council,23UE,The Arbor,HC501,Catering Provisions -Food,5110,FOOD,23/01/2015,395752,138.92,NET,Janes Pantry,24500W
Gloucester City Council,23UE,Tourism Marketing,LT100,Operational Equipment <5000,5012,CREDITED ON SC309924,23/01/2015,397115,191.99,NET,Robert Hall Business Equipment Ltd,19925B
Gloucester City Council,23UE,Tourism Marketing,LT100,Operational Equipment <5000,5012,Multi Purpose Cleaner,23/01/2015,396462,4.76,NET,Robert Hall Business Equipment Ltd,19925B
Gloucester City Council,23UE,16 Commercial Road,RB539,Advertising And Publicity,5702,16 COMMERCIAL RD,26/01/2015,397016,694,NET,Nick Bevan Consulting Ltd,15475B
Gloucester City Council,23UE,Armscroft Park Flood Mit S106,LY153,Contract Payments,0020,"Armscroft park, watering new trees",26/01/2015,391681,165,CAP,Greenfields Garden Services Ltd,48130G
Gloucester City Council,23UE,Business Planning & Performanc,RL500,Fees For Services Received,5350,room hire 08/10/14,26/01/2015,396889,740,NET,Aspire Sports & Cultural Trust,08135V
Gloucester City Council,23UE,Business Support,PT250,Routine R And M - Vehicles,4011,VN58 VOD,26/01/2015,397007,226.21,NET,123 Car & Commercial,07651E
Gloucester City Council,23UE,Business Transformation & Tech,RT700,Computer Software Maintenance,5427,data sharing programme,26/01/2015,396883,8262,NET,Civica Uk Ltd,10841X
Gloucester City Council,23UE,Business Transformation & Tech,RT700,Computer Software Maintenance,5427,Maintenance Charge 15/16,26/01/2015,396420,1694,NET,Ash Information Systems Ltd,54890V
Gloucester City Council,23UE,Cemeteries,HC300,Operational Materials,5070,SWEEPS NOV 14 - JAN  15,26/01/2015,396660,256,NET,Enterprise (Aol) Ltd,06695G
Gloucester City Council,23UE,Cemeteries,HC300,Repair/Maint Of Monuments,3004,HARDWARE,26/01/2015,397004,393.34,NET,Easy Mix Ltd,01403L
Gloucester City Council,23UE,Civica Admin Charges,RT105,Fees For Services Received,5350,DEC 2014,26/01/2015,396684,5,NET,Companies House,58954E
Gloucester City Council,23UE,Civica Admin Charges,RT105,Postages,5400,Post 15/12/14 - 02/01/15,26/01/2015,396541,1297.13,NET,Royal Mail S.Wales & South West,35830S
Gloucester City Council,23UE,Civica It Contract,RT270,Contracted Services,6970,Pension Exces Reclaim August 2014,26/01/2015,395527,898.04,NET,Civica Uk Ltd,10841X
Gloucester City Council,23UE,Contact Centre,RB300,Basic Pay -Admin /Prof Staff,2601,Temporary Staff,26/01/2015,397021,360,NET,Hbhc Synergy Ltd,13363J
Gloucester City Council,23UE,Corporate Expenses,RC110,Subscriptions,5600,2015 fee,26/01/2015,396954,2995,NET,Local Government Information Unit,51597A
Gloucester City Council,23UE,Countryside Unit,LP201,Routine R And M - Vehicles,4011,BATTERY,26/01/2015,397003,38.5,NET,Imperial Commercials (Gloucester) Ltd,12764V
Gloucester City Council,23UE,Docks Complex - Services,RB100,Catering Provisions -Food,5110,food,26/01/2015,396021,64.13,NET,Janes Pantry,24500W
Gloucester City Council,23UE,Docks Complex - Services,RB100,Lift Maintenance,3051,herbert warehouse,26/01/2015,397013,823.52,NET,Pickerings Europe Ltd*,58816U
Gloucester City Council,23UE,Docks Complex - Services,RB100,Lift Maintenance,3051,HERBERT WAREHOUSE,26/01/2015,397008,75,NET,Pickerings Europe Ltd*,58816U
Gloucester City Council,23UE,Docks Complex - Services,RB100,Recycling,3631,Recycling,26/01/2015,396449,178.2,NET,Printwaste Recycling,57114W
Gloucester City Council,23UE,Docks Complex - Services,RB100,Recycling,3631,Recycling,26/01/2015,396465,166.6,NET,Printwaste Recycling,57114W
Gloucester City Council,23UE,Docks Complex - Telephones,RB120,Mobile Phones,5409,phone,26/01/2015,396023,119,NET,Everything Everywhere Ltd (T-Mobile),02334V
Gloucester City Council,23UE,Docks Complex - Telephones,RB120,Mobile Phones,5409,Samsung Galaxy Ace,26/01/2015,396441,119.99,NET,Everything Everywhere Ltd (T-Mobile),02334V
Gloucester City Council,23UE,Emergency Planning,RO100,Fees For Services Received,5350,Civil Protection Support,26/01/2015,396261,14057.28,NET,Gloucestershire County Council,18650D
Gloucester City Council,23UE,Enhanced Lighting Schemes,PY118,Contract Payments,0020,"Conservative Club, Change Flood Lights",26/01/2015,392588,410.4,CAP,Rf Gardiner Limited,12299B
Gloucester City Council,23UE,Environmental Planning,LM340,Fees For Services Received,5350,Barnwood Arboretum Pond Works,26/01/2015,391682,7020,NET,Greenfields Garden Services Ltd,48130G
Gloucester City Council,23UE,Financial Services,RT200,Consultants Fees,5349,consultants fees,26/01/2015,397002,100.97,NET,Advanced Business Solutions,06072N
Gloucester City Council,23UE,Gl1 Pool Air Handling System,LY152,Contract Payments,0020,GL1,26/01/2015,397033,12357.8,CAP,Esg Pool Ventilation Ltd,14715P
Gloucester City Council,23UE,Gloucester Guildhall,LA100,Cleaning Materials,3600,CARPET CLEANING,26/01/2015,396982,475,NET,Gloucester Cleaning Service,17896B
Gloucester City Council,23UE,Guildhall Bar And Caf�,LA210,Catering Provisions -Food,5110,FOOD,26/01/2015,397022,255.23,NET,Woodward Foodservice,10714F
Gloucester City Council,23UE,Guildhall Bar And Caf�,LA210,Catering Provisions -Food,5110,FOOD,26/01/2015,397023,62.45,NET,Woodward Foodservice,10714F
Gloucester City Council,23UE,Guildhall Bar And Caf�,LA210,Catering Provisions -Food,5110,FOOD,26/01/2015,397024,4.96,NET,Total Produce Gloucester,12645E
Gloucester City Council,23UE,Guildhall Bar And Caf�,LA210,Catering Provisions -Food,5110,FOOD,26/01/2015,397025,4.96,NET,Total Produce Gloucester,12645E
Gloucester City Council,23UE,Guildhall Bar And Caf�,LA210,Catering Provisions -Food,5110,FOOD,26/01/2015,397026,4.96,NET,Total Produce Gloucester,12645E
Gloucester City Council,23UE,Guildhall Bar And Caf�,LA210,Catering Provisions -Food,5110,FOOD,26/01/2015,397027,4.96,NET,Total Produce Gloucester,12645E
Gloucester City Council,23UE,Hempsted Market/Car Boot,HM234,Maint Of Grounds - General,3030,hempsted meadows,26/01/2015,397031,200,NET,Mpl Wrought Iron Llp,03907P
Gloucester City Council,23UE,Homelessness,CH120,Fees For Services Received,5350,MED REPORTS,26/01/2015,397001,35,NET,Now Medical,03468L
Gloucester City Council,23UE,Homelessness,CH120,Rent In Advance,5516,housing fees,26/01/2015,397166,484.6,NET,Cgt Lettings,05899H
Gloucester City Council,23UE,Homelessness Prevention,CH122,Fees For Services Received,5350,housing fees,26/01/2015,397166,525,NET,Cgt Lettings,05899H
Gloucester City Council,23UE,Homelessness Prevention,CH122,Fees For Services Received,5350,MED REPORTS,26/01/2015,397001,105,NET,Now Medical,03468L
Gloucester City Council,23UE,REDACTED,REDACTED,REDACTED,REDACTED,REDACTED,26/01/2015,REDACTED,175,NET,REDACTED,REDACTED
Gloucester City Council,23UE,Human Resources,EH100,Training Course Fees,5367,Training Course fees,26/01/2015,396891,235,NET,Acas Leeds,08977J
Gloucester City Council,23UE,Internal Audit,RT300,Basic Pay - Temporary Staff,2751,Temporary Staff,26/01/2015,396977,1295,NET,Robert Half Ltd,03959K
Gloucester City Council,23UE,Investment Property,RB500,Repair/Maint Of Fixed Plant,3006,CITY MUSEUM,26/01/2015,396971,315,NET,Pro Door Ltd,04760C
Gloucester City Council,23UE,Kings Quarter,RY146,Purchase Cost -Land,0001,BANNERS,26/01/2015,396946,2680,CAP,M L Signs,15072E
Gloucester City Council,23UE,REDACTED,REDACTED,REDACTED,REDACTED,REDACTED,26/01/2015,REDACTED,37,NET,REDACTED,REDACTED
Gloucester City Council,23UE,Nms Contract,HI102,Operational Materials,5070,sacks,26/01/2015,396886,953,NET,Polystar Plastics Ltd,01120C
Gloucester City Council,23UE,Off Street Car Parks,PP110,General Repair/Maint Buildings,3000,GT WESTERN RD,26/01/2015,396994,160,NET,Hanman Split Ltd,56889J
Gloucester City Council,23UE,Pollution Control,HE300,Fees For Services Received,5350,WATER ANALYSIS,26/01/2015,396958,111.15,NET,Gradko International Ltd,11063B
Gloucester City Council,23UE,Postal Services,RS120,Postages,5400,envelopes,26/01/2015,396963,140,NET,Encore Envelopes Ltd,13782H
Gloucester City Council,23UE,Rehousing,CH111,Fees For Services Received,5350,MED REPORTS,26/01/2015,397001,75,NET,Now Medical,03468L
Gloucester City Council,23UE,Stationery Services,RS150,Stationery,5302,STATIONERY,26/01/2015,396996,45.24,NET,Lyreco Uk Ltd,11746G
Gloucester City Council,23UE,Stationery Services,RS150,Stationery,5302,STATIONERY,26/01/2015,396997,17.99,NET,Lyreco Uk Ltd,11746G
Gloucester City Council,23UE,Stationery Services,RS150,Stationery,5302,TILL ROLLS,26/01/2015,396976,135,NET,Paperloop Consumables Ltd,14594B
Gloucester City Council,23UE,Vehicles,RS140,Fuel,4012,FUEL,26/01/2015,397017,118.8,NET,Allstar Business Solutions Ltd (Arval),06594A
Gloucester City Council,23UE,Vehicles,RS140,Routine R And M - Vehicles,4011,VX03 OBW,26/01/2015,396964,98.19,NET,123 Car & Commercial,07651E
Gloucester City Council,23UE,11a Westgate Street,RB531,General Repair/Maint Buildings,3000,"11A Westgate Street, drain water system",28/01/2015,397064,195.74,NET,Rf Gardiner Limited,12299B
Gloucester City Council,23UE,27-29 Commercial Road,RB542,General Repair/Maint Buildings,3000,"Commercial Road, repairs to staircase",28/01/2015,397068,258.23,NET,Rf Gardiner Limited,12299B
Gloucester City Council,23UE,Aspire Admin Charges,LC105,Other Minor Income,9900,BAILIFF PAYMENTS 09/01/15,28/01/2015,397209,10,NET,Aspire Sports & Cultural Trust,08135V
Gloucester City Council,23UE,Asset Management,RS300,Basic Pay - Temporary Staff,2751,N Chadwick w/e 28/11/2014,28/01/2015,397259,1159.01,NET,Hays Specialist Recruitment Ltd,55516P
Gloucester City Council,23UE,Asset Management,RS300,General Repair/Maint Buildings,3000,"St Oswalds Priory, replace path",28/01/2015,397091,90.68,NET,Rf Gardiner Limited,12299B
Gloucester City Council,23UE,Building Control,PT400,Basic Pay - Temporary Staff,2751,Temporary Staff,28/01/2015,396956,1536.53,NET,The Oyster Partnership Limited,14900T
Gloucester City Council,23UE,Building Control,PT400,Basic Pay - Temporary Staff,2751,Temporary Staff,28/01/2015,396957,1548.85,NET,The Oyster Partnership Limited,14900T
Gloucester City Council,23UE,Business Transformation & Tech,RT700,Computer Hardware <5000,5420,LATITUDE 15 5000,28/01/2015,396984,488.95,NET,Dell Computers Corporation Ltd,55920C
Gloucester City Council,23UE,Business Transformation & Tech,RT700,Computer Hardware <5000,5420,LATITUDE E7450/7450,28/01/2015,396950,656.84,NET,Dell Computers Corporation Ltd,55920C
Gloucester City Council,23UE,Bus Station,RB400,General Repair/Maint Buildings,3000,"Bus Station Offices, broken slabs",28/01/2015,397092,340.35,NET,Rf Gardiner Limited,12299B
Gloucester City Council,23UE,Car Parks,GY002,Legal/Survey Fees -Land,0002,Supply of LED lighting,28/01/2015,395845,4433.19,CAP,Total Lighting Controls Ltd,02415U
Gloucester City Council,23UE,Celebratory Lights,LT302,Christmas Lights,5024,xmas decs,28/01/2015,397032,100,NET,Scs Installations Ltd,10383G
Gloucester City Council,23UE,Cemeteries,HC300,Fuel,4012,ANTI WAX,28/01/2015,396989,20,NET,Cpl Petroleum,55192U
Gloucester City Council,23UE,Cemeteries,HC300,Fuel,4012,GASOIL,28/01/2015,396990,510,NET,Cpl Petroleum,55192U
Gloucester City Council,23UE,Civil Parking Enforcement,PT741,Computer Software Maintenance,5427,Bank Charges Oct 14,28/01/2015,395304,1432.64,NET,Chipside Ltd,06535T
Gloucester City Council,23UE,Civil Parking Enforcement,PT741,Computer Software Maintenance,5427,Cashless parking fees,28/01/2015,395303,1233.25,NET,Chipside Ltd,06535T
Gloucester City Council,23UE,Civil Parking Enforcement,PT741,Computer Software Maintenance,5427,Cipassist Software technical support,28/01/2015,395286,3500,NET,Chipside Ltd,06535T
Gloucester City Council,23UE,Cleansing Services Admin,HI100,Fees For Services Received,5350,CLINICAL SHARPS,28/01/2015,396987,4000,NET,Stroud District Council,42500D
Gloucester City Council,23UE,Client Revs & Bens Contract,RT240,Bailiffs Fees,5368,CTAX FEES,28/01/2015,397222,611.21,NET,Bristow & Sutor,05450M
Gloucester City Council,23UE,Client Revs & Bens Contract,RT240,Bailiffs Fees,5368,VAT ONLY INVOICE,28/01/2015,397221,0,NET,Bristow & Sutor,05450M
Gloucester City Council,23UE,Contrib To Housing Pooled Recs,ZR205,Contrib To Housing Pooled Recs,7490,RTB pooling payment Q3 2014/15,28/01/2015,397253,53520.74,NET,Clg,11059A
Gloucester City Council,23UE,Development Management,PT200,Fees For Services Received,5350,Professional Services,28/01/2015,397323,400,NET,Albion Planning Consultants Ltd,15484A
Gloucester City Council,23UE,Development Management,PT200,Fees For Services Received,5350,Professional Services,28/01/2015,397324,800,NET,Albion Planning Consultants Ltd,15484A
Gloucester City Council,23UE,Docks Complex - Services,RB100,Catering Provisions -Food,5110,FOOD,28/01/2015,396681,64.23,NET,Janes Pantry,24500W
Gloucester City Council,23UE,Docks Complex - Services,RB100,Catering Provisions -Food,5110,FOOD,28/01/2015,396952,88.44,NET,Janes Pantry,24500W
Gloucester City Council,23UE,Docks Complex - Services,RB100,Catering Provisions -Food,5110,FOOD - DOCKS,28/01/2015,396035,38.83,NET,Janes Pantry,24500W
Gloucester City Council,23UE,Docks Complex - Services,RB100,Cleaning Materials,3600,CLEANING GOODS,28/01/2015,396970,113.52,NET,Core Hygiene Ltd,03885P
Gloucester City Council,23UE,Docks Complex - Services,RB100,General Repair/Maint Buildings,3000,"Herbert Warehouse, attend to faulty ligh",28/01/2015,397096,118.67,NET,Rf Gardiner Limited,12299B
Gloucester City Council,23UE,Docks Complex - Services,RB100,General Repair/Maint Buildings,3000,"Herbert Warehouse, repair light fittings",28/01/2015,397060,78.84,NET,Rf Gardiner Limited,12299B
Gloucester City Council,23UE,Docks Complex - Services,RB100,General Repair/Maint Buildings,3000,"Herbert Warehouse, replace light fitting",28/01/2015,397070,330.35,NET,Rf Gardiner Limited,12299B
Gloucester City Council,23UE,Docks Complex - Services,RB100,General Repair/Maint Buildings,3000,"HKP Warehouse, fit window latches",28/01/2015,397046,439.59,NET,Rf Gardiner Limited,12299B
Gloucester City Council,23UE,Docks Complex - Services,RB100,General Repair/Maint Buildings,3000,"HKP Warehouse, new element",28/01/2015,397072,248.89,NET,Rf Gardiner Limited,12299B
Gloucester City Council,23UE,Docks Complex - Services,RB100,General Repair/Maint Buildings,3000,"HKP Warehouse, replace keypads",28/01/2015,397074,330.61,NET,Rf Gardiner Limited,12299B
Gloucester City Council,23UE,Docks Complex - Services,RB100,General Repair/Maint Buildings,3000,"North Warehouse, fix fault on flush",28/01/2015,397049,80.19,NET,Rf Gardiner Limited,12299B
Gloucester City Council,23UE,Docks Complex - Services,RB100,General Repair/Maint Buildings,3000,"Phillpotts Warehouse, lighting fault",28/01/2015,397061,70.64,NET,Rf Gardiner Limited,12299B
Gloucester City Council,23UE,Docks Complex - Services,RB100,Operational Equipment <5000,5012,NXP,28/01/2015,396998,115,NET,Bannerbridge Plc,13703G
Gloucester City Council,23UE,Docks Complex - Telephones,RB120,Mobile Phones,5409,PHONE,28/01/2015,396980,98,NET,Everything Everywhere Ltd (T-Mobile),02334V
Gloucester City Council,23UE,Docks Complex - Telephones,RB120,Mobile Phones,5409,PHONE,28/01/2015,397227,98,NET,Everything Everywhere Ltd (T-Mobile),02334V
Gloucester City Council,23UE,Docks Complex - Telephones,RB120,Telephones And Fax,5410,Charges,28/01/2015,396769,2891.35,NET,Bt Payment Services Ltd,56283E
Gloucester City Council,23UE,REDACTED,REDACTED,REDACTED,REDACTED,REDACTED,28/01/2015,REDACTED,500,NET,REDACTED,REDACTED
Gloucester City Council,23UE,REDACTED,REDACTED,REDACTED,REDACTED,REDACTED,28/01/2015,REDACTED,500,NET,REDACTED,REDACTED
Gloucester City Council,23UE,REDACTED,REDACTED,REDACTED,REDACTED,REDACTED,28/01/2015,REDACTED,1500,NET,REDACTED,REDACTED
Gloucester City Council,23UE,REDACTED,REDACTED,REDACTED,REDACTED,REDACTED,28/01/2015,REDACTED,500,NET,REDACTED,REDACTED
Gloucester City Council,23UE,Economic Development,FP300,Business Grant,7116,GRANT,28/01/2015,397247,500,NET,Emma Willis Ltd,80825RV
Gloucester City Council,23UE,Environmental Planning,LM340,Fees For Services Received,5350,KINGSWAY BMX,28/01/2015,397250,1486.3,NET,Greenfields Garden Services Ltd,48130G
Gloucester City Council,23UE,Financial Services,RT200,Training Course Fees,5367,AAT Exam Fees,28/01/2015,397255,73.5,NET,Pitman Training Cheltenham,15476Z
Gloucester City Council,23UE,Food Safety,HE100,Vocational Training,2970,MEAT COURSE 14/01/15,28/01/2015,396999,240,NET,Abc Food Law Ltd,14734K
Gloucester City Council,23UE,General Works Fund,RY203,Contract Payments,0020,"Bearland Lodge, replace lighting",28/01/2015,397050,736,CAP,Rf Gardiner Limited,12299B
Gloucester City Council,23UE,Grants To Voluntary Sector,FG100,Members Allocation Fund,7100F,DONATION,28/01/2015,397249,1000,NET,Gloucester District Scouts And Hq,15488S
Gloucester City Council,23UE,REDACTED,REDACTED,REDACTED,REDACTED,REDACTED,28/01/2015,REDACTED,1000,NET,REDACTED,REDACTED
Gloucester City Council,23UE,REDACTED,REDACTED,REDACTED,REDACTED,REDACTED,28/01/2015,REDACTED,600,NET,REDACTED,REDACTED
Gloucester City Council,23UE,Guildhall Events,LA200,Fees For Services Received,5350,DEC 2014,28/01/2015,397220,24.75,NET,W H Smith Ltd,40860M
Gloucester City Council,23UE,Guildhall Events,LA200,Security Services Fees,5351,security dec 2014,28/01/2015,397213,1223.5,NET,Nsgl Ltd,12539E
Gloucester City Council,23UE,Hackney Carriages,HL100,Other Minor Supplies Services,5590,LANYARDS,28/01/2015,396011,75,NET,Essentra Packaging & Security Ltd,03936T
Gloucester City Council,23UE,Head Of Regeneration & Eco Dev,GO102,Vehicle Hire,4050,TRANSPORT DEC 2014,28/01/2015,397252,150,NET,Chris Hall Chauffeuring,11660U
Gloucester City Council,23UE,Hempsted Market/Car Boot,HM234,Sewerage And Environ Charges,3402,hempsted,28/01/2015,397217,413.2,NET,Abbey Loos Limited,10787B
Gloucester City Council,23UE,REDACTED,REDACTED,REDACTED,REDACTED,REDACTED,28/01/2015,REDACTED,837.58,NET,REDACTED,REDACTED
Gloucester City Council,23UE,Investment Property,RB500,General Repair/Maint Buildings,3000,"92-96 Westgate Street, refix boarding",28/01/2015,397045,24.63,NET,Rf Gardiner Limited,12299B
Gloucester City Council,23UE,Investment Property,RB500,General Repair/Maint Buildings,3000,BENTINCK HOUSE,28/01/2015,397228,215.82,NET,Severnside Security Ltd,14661M
Gloucester City Council,23UE,Investment Property,RB500,General Repair/Maint Buildings,3000,"Blackfriars Priory, leaking sink tap",28/01/2015,397038,19.08,NET,Rf Gardiner Limited,12299B
Gloucester City Council,23UE,Investment Property,RB500,General Repair/Maint Buildings,3000,"Blackfriors Priory, waste fittings",28/01/2015,397066,19.08,NET,Rf Gardiner Limited,12299B
Gloucester City Council,23UE,Investment Property,RB500,General Repair/Maint Buildings,3000,"City Museum, ease and adjust lock",28/01/2015,397051,48.75,NET,Rf Gardiner Limited,12299B
Gloucester City Council,23UE,Investment Property,RB500,General Repair/Maint Buildings,3000,"City Museum, faulty sump pump",28/01/2015,397078,407.4,NET,Rf Gardiner Limited,12299B
Gloucester City Council,23UE,Investment Property,RB500,General Repair/Maint Buildings,3000,"City Museum, repair flush handle",28/01/2015,397085,20.24,NET,Rf Gardiner Limited,12299B
Gloucester City Council,23UE,Investment Property,RB500,General Repair/Maint Buildings,3000,"City Museum, replace biopak",28/01/2015,397039,282.68,NET,Rf Gardiner Limited,12299B
Gloucester City Council,23UE,Investment Property,RB500,General Repair/Maint Buildings,3000,"Coney Hill Crem, attend to faulty fly ca",28/01/2015,397099,91.98,NET,Rf Gardiner Limited,12299B
Gloucester City Council,23UE,Investment Property,RB500,General Repair/Maint Buildings,3000,"Coney Hill Crem, attend to faulty heater",28/01/2015,397097,169.08,NET,Rf Gardiner Limited,12299B
Gloucester City Council,23UE,Investment Property,RB500,General Repair/Maint Buildings,3000,"Coney Hill Crem, attend to leak",28/01/2015,397053,44.68,NET,Rf Gardiner Limited,12299B
Gloucester City Council,23UE,Investment Property,RB500,General Repair/Maint Buildings,3000,"Coney Hill Crem, repair fence",28/01/2015,397089,363.52,NET,Rf Gardiner Limited,12299B
Gloucester City Council,23UE,Investment Property,RB500,General Repair/Maint Buildings,3000,"Eastgate Market, refix floor tile",28/01/2015,397090,16.42,NET,Rf Gardiner Limited,12299B
Gloucester City Council,23UE,Investment Property,RB500,General Repair/Maint Buildings,3000,"Eastgate Market, repair light fittings",28/01/2015,397062,65.7,NET,Rf Gardiner Limited,12299B
Gloucester City Council,23UE,Investment Property,RB500,General Repair/Maint Buildings,3000,"Eastgate Market, repairs to heaters",28/01/2015,397082,262.8,NET,Rf Gardiner Limited,12299B
Gloucester City Council,23UE,Investment Property,RB500,General Repair/Maint Buildings,3000,"Folk Museum, adjust gates",28/01/2015,397047,41.05,NET,Rf Gardiner Limited,12299B
Gloucester City Council,23UE,Investment Property,RB500,General Repair/Maint Buildings,3000,"Folk Museum, water heaters",28/01/2015,397084,36.15,NET,Rf Gardiner Limited,12299B
Gloucester City Council,23UE,Investment Property,RB500,General Repair/Maint Buildings,3000,"Guildhall, attend to leak",28/01/2015,397052,98.71,NET,Rf Gardiner Limited,12299B
Gloucester City Council,23UE,Investment Property,RB500,General Repair/Maint Buildings,3000,"Guildhall, clean gutters",28/01/2015,397065,82.1,NET,Rf Gardiner Limited,12299B
Gloucester City Council,23UE,Investment Property,RB500,General Repair/Maint Buildings,3000,"Guildhall, investigate leak",28/01/2015,397095,131.36,NET,Rf Gardiner Limited,12299B
Gloucester City Council,23UE,Investment Property,RB500,General Repair/Maint Buildings,3000,"Guildhall, leaking batteries",28/01/2015,397063,24.63,NET,Rf Gardiner Limited,12299B
Gloucester City Council,23UE,Investment Property,RB500,General Repair/Maint Buildings,3000,"Guildhall, repair water heater",28/01/2015,397054,19.08,NET,Rf Gardiner Limited,12299B
Gloucester City Council,23UE,Investment Property,RB500,General Repair/Maint Buildings,3000,"Guildhall, replace fire door",28/01/2015,397058,540.25,NET,Rf Gardiner Limited,12299B
Gloucester City Council,23UE,Investment Property,RB500,General Repair/Maint Buildings,3000,"HKP Warehouse, repair light fitting",28/01/2015,397067,70.11,NET,Rf Gardiner Limited,12299B
Gloucester City Council,23UE,Investment Property,RB500,General Repair/Maint Buildings,3000,"HKP Warehouse, secure hot tap",28/01/2015,397086,13.34,NET,Rf Gardiner Limited,12299B
Gloucester City Council,23UE,Investment Property,RB500,General Repair/Maint Buildings,3000,"Innsworth Lane Pavilion, door handle",28/01/2015,397075,49.47,NET,Rf Gardiner Limited,12299B
Gloucester City Council,23UE,Investment Property,RB500,General Repair/Maint Buildings,3000,"North Warehouse, fault on lighting",28/01/2015,397069,352.34,NET,Rf Gardiner Limited,12299B
Gloucester City Council,23UE,Investment Property,RB500,General Repair/Maint Buildings,3000,"Shopmobility, faulty heater",28/01/2015,397043,169.08,NET,Rf Gardiner Limited,12299B
Gloucester City Council,23UE,Investment Property,RB500,General Repair/Maint Buildings,3000,"Shopmobility, fix stair nosings",28/01/2015,397055,227.4,NET,Rf Gardiner Limited,12299B
Gloucester City Council,23UE,Investment Property,RB500,General Repair/Maint Buildings,3000,"St Michaels Tower, lift slabs",28/01/2015,397057,156.23,NET,Rf Gardiner Limited,12299B
Gloucester City Council,23UE,Kings Quarter,RY146,Contract Payments,0020,chase lane,28/01/2015,396961,418,CAP,Ken Pink Plant Hire Ltd,56884V
Gloucester City Council,23UE,Kings Quarter,RY146,Contract Payments,0020,"Kings Square, provide padlocks",28/01/2015,397041,151.5,CAP,Rf Gardiner Limited,12299B
Gloucester City Council,23UE,Kings Sq Paving Emerg Works,RY161,Contract Payments,0020,"Kings Square, tarmac repairs",28/01/2015,397037,228.51,CAP,Rf Gardiner Limited,12299B
Gloucester City Council,23UE,Lighting,GY009,Capital Lighting Schemes,0015,"Infirmary Arcade, repair lighting",28/01/2015,397042,460.87,CAP,Rf Gardiner Limited,12299B
Gloucester City Council,23UE,Lighting,GY009,Capital Lighting Schemes,0015,"St Marys Church, replace lights",28/01/2015,397083,227.16,CAP,Rf Gardiner Limited,12299B
Gloucester City Council,23UE,Lighting,GY009,Capital Lighting Schemes,0015,"St Oswalds Priory, repair lights",28/01/2015,397080,184.61,CAP,Rf Gardiner Limited,12299B
Gloucester City Council,23UE,Nms Contract,HI102,Contracted Services,6970,Pension Recharge November 2014,28/01/2015,396291,10385.5,NET,Enterprise (Aol) Ltd,06695G
Gloucester City Council,23UE,Northwarehouse,RB150,General Repair/Maint Buildings,3000,"North Warehouse, repair lighting",28/01/2015,397098,373.61,NET,Rf Gardiner Limited,12299B
Gloucester City Council,23UE,Northwarehouse,RB150,General Repair/Maint Buildings,3000,"North Warehouse, water leak",28/01/2015,397059,38.16,NET,Rf Gardiner Limited,12299B
Gloucester City Council,23UE,Northwarehouse,RB150,General Repair/Maint Buildings,3000,TANK CLEANING,28/01/2015,397223,906,NET,Kingfisher Environmental Services Ltd,04738V
Gloucester City Council,23UE,Off Street Car Parks,PP110,General Repair/Maint Buildings,3000,"Eastgate Car Park, reinstate flashings",28/01/2015,397073,2363.31,NET,Rf Gardiner Limited,12299B
Gloucester City Council,23UE,Off Street Car Parks,PP110,General Repair/Maint Buildings,3000,"Kings Walk Car Park, adjust swollen door",28/01/2015,397094,32.84,NET,Rf Gardiner Limited,12299B
Gloucester City Council,23UE,Off Street Car Parks,PP110,General Repair/Maint Buildings,3000,"Kings Walk Car Park, faulty lights",28/01/2015,397077,78.84,NET,Rf Gardiner Limited,12299B
Gloucester City Council,23UE,Off Street Car Parks,PP110,General Repair/Maint Buildings,3000,"Kings Walk Car Park, lighting",28/01/2015,397048,987.27,NET,Rf Gardiner Limited,12299B
Gloucester City Council,23UE,Off Street Car Parks,PP110,General Repair/Maint Buildings,3000,"Kings Walk Car Park, repair door",28/01/2015,397040,85.3,NET,Rf Gardiner Limited,12299B
Gloucester City Council,23UE,Off Street Car Parks,PP110,General Repair/Maint Buildings,3000,"Kings Walk Car Park, replace lights",28/01/2015,397081,525,NET,Rf Gardiner Limited,12299B
Gloucester City Council,23UE,Off Street Car Parks,PP110,General Repair/Maint Buildings,3000,"Kings Walk Car Park, unblock gulley",28/01/2015,397093,38.16,NET,Rf Gardiner Limited,12299B
Gloucester City Council,23UE,Off Street Car Parks,PP110,General Repair/Maint Buildings,3000,"Longsmith Street Car Park, lighting",28/01/2015,397087,669.57,NET,Rf Gardiner Limited,12299B
Gloucester City Council,23UE,Off Street Car Parks,PP110,General Repair/Maint Buildings,3000,"Longsmith Street Car Park, replace tap",28/01/2015,397079,13.34,NET,Rf Gardiner Limited,12299B
Gloucester City Council,23UE,Off Street Car Parks,PP110,General Repair/Maint Buildings,3000,ROADSWEEPER,28/01/2015,397019,3038,NET,Ken Pink Plant Hire Ltd,56884V
Gloucester City Council,23UE,Off Street Car Parks,PP110,General Repair/Maint Buildings,3000,rock salt,28/01/2015,396962,300,NET,Ken Pink Plant Hire Ltd,56884V
Gloucester City Council,23UE,Retail Market - Landlord,HM300,Cleaning Materials,3600,CLEANING GOODS,28/01/2015,397229,189.78,NET,Core Hygiene Ltd,03885P
Gloucester City Council,23UE,Retail Market - Landlord,HM300,Clothing,5200,CLOTHING,28/01/2015,396649,101.75,NET,Safpro Industrial Supply Co,39190W
Gloucester City Council,23UE,Retail Market - Landlord,HM300,Lift Maintenance,3051,FIRE SERVICE VISIT 28/07/14,28/01/2015,397225,338.18,NET,Gloucestershire County Council,18650D
Gloucester City Council,23UE,Retail Market - Landlord,HM300,Sewerage And Environ Charges,3402,EASTGATE MARKET,28/01/2015,397232,180,NET,Eezeeflow Drain Services,11587C
Gloucester City Council,23UE,St Michaels Tower,GY016,Contract Payments,0020,"St Michaels Tower, finger posts",28/01/2015,397088,54.25,CAP,Rf Gardiner Limited,12299B
Gloucester City Council,23UE,St Michaels Tower,GY016,Contract Payments,0020,"St Michaels Tower, remove heras fencing",28/01/2015,397044,84.76,CAP,Rf Gardiner Limited,12299B
Gloucester City Council,23UE,The Arbor,HC501,Operational Equipment <5000,5012,"Coney Hill Crem, alter wiring",28/01/2015,397071,114.56,NET,Rf Gardiner Limited,12299B
Gloucester City Council,23UE,Tic Trading,LT110,Materials For Sale,5080,POSTCARDS,28/01/2015,397006,134.65,NET,Halligan Raby Ltd,15477X
Gloucester City Council,23UE,Tic Trading,LT110,Materials For Sale,5080,POSTCARDS,28/01/2015,397224,50,NET,Inish Publications,10233D
Gloucester City Council,23UE,Tic Trading,LT110,Materials For Sale,5080,Various Items,28/01/2015,396437,186.84,NET,New English Teas Ltd,00118Y
Gloucester City Council,23UE,Tree Planting Grant Funded,LY150,Contract Payments,0020,ARMSCROFT PARK,28/01/2015,397233,619,CAP,Greenfields Garden Services Ltd,48130G
Gloucester City Council,23UE,Tree Planting Grant Funded,LY150,Contract Payments,0020,CRISPIN CLOSE,28/01/2015,397251,254,CAP,Greenfields Garden Services Ltd,48130G
Gloucester City Council,23UE,Tree Planting Grant Funded,LY150,Contract Payments,0020,SAPPERTON RD,28/01/2015,397215,226,CAP,Greenfields Garden Services Ltd,48130G
Gloucester City Council,23UE,Ugly Structures,GY010,Contract Payments,0020,St Michaels Tower,28/01/2015,397076,126.01,CAP,Rf Gardiner Limited,12299B
Gloucester City Council,23UE,Vehicles,RS140,Fuel,4012,FUEL,28/01/2015,397214,119.87,NET,Allstar Business Solutions Ltd (Arval),06594A
Gloucester City Council,23UE,Vending Machine,RB111,Hire Of Equipment,5020,Lease Rental,28/01/2015,396210,212.57,NET,Siemens Financial Services Ltd,54427Z
Gloucester City Council,23UE,Cemeteries,HC300,Operational Materials,5070,first aid kits,29/01/2015,396947,57.85,NET,Safpro Industrial Supply Co,39190W
Gloucester City Council,23UE,Cemeteries,HC300,Purch Vehicles/M. Plant <5000,4000,vacuum bags,29/01/2015,397011,16.63,NET,Gillman & Son (Electrical) Ltd,21632RV
Gloucester City Council,23UE,Civic Admin And Hospitality,RC210,Hospitality,5122,Adverts,29/01/2015,396518,525.89,NET,Local World Ltd,08556P
Gloucester City Council,23UE,Civic Admin And Hospitality,RC210,Hospitality,5122,Adverts,29/01/2015,396519,116.2,NET,Local World Ltd,08556P
Gloucester City Council,23UE,Contact Centre,RB300,Basic Pay -Admin /Prof Staff,2601,Temporary Staff,29/01/2015,393610,22,NET,Cps Anystaff Recruitment Ltd,13945D
Gloucester City Council,23UE,Homelessness,CH120,Basic Pay - Temporary Staff,2751,Temporary Staff,29/01/2015,396286,304,NET,Building Recruitment Company Ltd,55385E
Gloucester City Council,23UE,REDACTED,REDACTED,REDACTED,REDACTED,REDACTED,29/01/2015,REDACTED,165.4,NET,REDACTED,REDACTED
Gloucester City Council,23UE,REDACTED,REDACTED,REDACTED,REDACTED,REDACTED,29/01/2015,REDACTED,600,NET,REDACTED,REDACTED
Gloucester City Council,23UE,REDACTED,REDACTED,REDACTED,REDACTED,REDACTED,29/01/2015,REDACTED,54,NET,REDACTED,REDACTED
Gloucester City Council,23UE,Business Support,PT250,Basic Pay - Cleaners,2401,NEW KEY FOR VE08 OUG,30/01/2015,397465,73.95,NET,Blade Motor Company,13671U
Gloucester City Council,23UE,Business Transformation & Tech,RT700,Computer Hardware <5000,5420,HARDWARE,30/01/2015,397466,639,NET,Dell Computers Corporation Ltd,55920C
Gloucester City Council,23UE,City Museum And Art Gallery,LM200,Cleaning / Domestic Equipment,5011,CLEANING GOODS,30/01/2015,394557,386.12,NET,Gpp Hygiene,06080P
Gloucester City Council,23UE,City Museum And Art Gallery,LM200,Publications For Sale,5064,GOODS FOR RESALE,30/01/2015,397241,319.67,NET,Ancestors Of Dover Ltd,15009M
Gloucester City Council,23UE,City Museum Catering,LM202,Catering Provisions -Food,5110,Milk,30/01/2015,397394,4.96,NET,Total Produce Gloucester,12645E
Gloucester City Council,23UE,City Museum Catering,LM202,Catering Provisions -Food,5110,Milk,30/01/2015,397409,4.96,NET,Total Produce Gloucester,12645E
Gloucester City Council,23UE,City Museum Catering,LM202,Catering Provisions -Food,5110,Milk,30/01/2015,397410,4.96,NET,Total Produce Gloucester,12645E
Gloucester City Council,23UE,City Museum Catering,LM202,Catering Provisions -Food,5110,Milk,30/01/2015,397411,4.96,NET,Total Produce Gloucester,12645E
Gloucester City Council,23UE,City Museum Catering,LM202,Catering Provisions -Food,5110,Milk,30/01/2015,397412,4.96,NET,Total Produce Gloucester,12645E
Gloucester City Council,23UE,City Museum Catering,LM202,Catering Provisions -Food,5110,Milk,30/01/2015,397425,4.96,NET,Total Produce Gloucester,12645E
Gloucester City Council,23UE,City Museum Catering,LM202,Catering Provisions -Food,5110,Milk,30/01/2015,397436,4.96,NET,Total Produce Gloucester,12645E
Gloucester City Council,23UE,Client Revs & Bens Contract,RT240,Fees For Services Received,5350,VAT ONLY INVOICE,30/01/2015,397426,0,NET,Phoenix Commercial Collections Ltd,13435J
Gloucester City Council,23UE,Client Revs & Bens Contract,RT240,Fees For Services Received,5350,VAT ONLY INVOICE,30/01/2015,397427,0,NET,Phoenix Commercial Collections Ltd,13435J
Gloucester City Council,23UE,Contaminated Land,HE301,Basic Pay - Operational Staff,1001,Land Work Oct & Nov 2014,30/01/2015,396281,3276.9,NET,Bromsgrove District Council,15037G
Gloucester City Council,23UE,Countryside Unit,LP201,Contract Cleaning,3620,Cleaning  January 2015,30/01/2015,397444,130,NET,Cv Fisher Cleaning Services,14907C
Gloucester City Council,23UE,Crematorium,HC200,Repair/Maint Of Monuments,3004,Tablet,30/01/2015,397442,127.5,NET,The Columbaria Company,55078T
Gloucester City Council,23UE,Disabled Facilities Grants,CY013,Disabled Facility Grants,0074,Disabled Facilities Grant MDF5110,30/01/2015,397443,4189.26,CAP,Snape Construction Ltd,40958T
Gloucester City Council,23UE,Docks Complex - Castlemeads Cp,RB210,Contracted Services,6970,GC Fixed Overhead,30/01/2015,396423,773.48,NET,Apcoa Parking (Uk) Ltd,09954M
Gloucester City Council,23UE,Docks Complex - Castlemeads Cp,RB210,Contracted Services,6970,GC Variable Enforcement,30/01/2015,396421,376.3,NET,Apcoa Parking (Uk) Ltd,09954M
Gloucester City Council,23UE,Docks Complex - Castlemeads Cp,RB210,Contracted Services,6970,GC Vehicles,30/01/2015,396422,437.08,NET,Apcoa Parking (Uk) Ltd,09954M
Gloucester City Council,23UE,Docks Complex - Castlemeads Cp,RB210,Contracted Services,6970,GD P&D and Headcams,30/01/2015,396439,2013.89,NET,Apcoa Parking (Uk) Ltd,09954M
Gloucester City Council,23UE,Docks Complex - Catering Servs,RB110,Catering Provisions -Food,5110,Food,30/01/2015,397417,379.84,NET,3663,55585U
Gloucester City Council,23UE,Docks Complex - Catering Servs,RB110,Catering Provisions -Food,5110,Food,30/01/2015,397418,410.09,NET,3663,55585U
Gloucester City Council,23UE,Docks Complex - Catering Servs,RB110,Catering Provisions -Food,5110,Food,30/01/2015,397446,397.31,NET,3663,55585U
Gloucester City Council,23UE,Docks Complex - Services,RB100,Cleaning Materials,3600,CLEANING GOODS,30/01/2015,397318,39.83,NET,Cleanmy Ltd,06971S
Gloucester City Council,23UE,Docks Complex - Services,RB100,Cleaning Materials,3600,Cleaning Materials,30/01/2015,394177,29.88,NET,Cleanmy Ltd,06971S
Gloucester City Council,23UE,Docks Complex - Services,RB100,Repair/Maint Of Fixed Plant,3006,MAINT FEB - APR 2015,30/01/2015,397472,578.46,NET,Gea Denco Ltd,57271C
Gloucester City Council,23UE,Guildhall Bar And Caf�,LA210,Catering Provisions -Food,5110,FOOD,30/01/2015,396682,32.55,NET,Janes Pantry,24500W
Gloucester City Council,23UE,Guildhall Bar And Caf�,LA210,Catering Provisions -Food,5110,FOOD,30/01/2015,396953,22.4,NET,Janes Pantry,24500W
Gloucester City Council,23UE,Guildhall Bar And Caf�,LA210,Catering Provisions -Food,5110,FOOD,30/01/2015,397405,26.8,NET,Janes Pantry,24500W
Gloucester City Council,23UE,Hempsted Market/Car Boot,HM234,Hire Of Equipment,5020,Portable Office,30/01/2015,396523,254.19,NET,Portable Offices (Hire ) Ltd,06286R
Gloucester City Council,23UE,Homelessness Prevention,CH122,Fees For Services Received,5350,Deposit,30/01/2015,397477,630,NET,Chawda Holdings Ltd,08904N
Gloucester City Council,23UE,Human Resources,EH100,Fees For Services Received,5350,Professional Services,30/01/2015,397316,988,NET,Weightmans Llp,15485E
Gloucester City Council,23UE,Human Resources,EH100,Fees For Services Received,5350,Payroll Charges December 2014,30/01/2015,396529,2664.74,NET,Gloucestershire County Council,18650D
Gloucester City Council,23UE,Investment Property,RB500,Fire Alarm Maintenance,3053,eastgate market,30/01/2015,396884,173.64,NET,A & E Fire Equipment Limited,54289L
Gloucester City Council,23UE,Investment Property,RB500,General Repair/Maint Buildings,3000,CREDITED ON 2672,30/01/2015,395273,641.91,NET,A & E Fire Equipment Limited,54289L
Gloucester City Council,23UE,Legal Services,RS200,Basic Pay - Temporary Staff,2751,Temporary Staff,30/01/2015,396973,1012.03,NET,Venn Group Ltd,04339P
Gloucester City Council,23UE,Legal Services,RS200,Basic Pay - Temporary Staff,2751,Temporary Staff,30/01/2015,396040,1267.59,NET,Venn Group Ltd,04339P
Gloucester City Council,23UE,Legal Services,RS200,Basic Pay - Temporary Staff,2751,Temporary Staff,30/01/2015,397238,1741.25,NET,Michael Page International Recruitment Ltd,06601P
Gloucester City Council,23UE,Legal Services,RS200,Basic Pay - Temporary Staff,2751,Temporary Staff,30/01/2015,396972,1507.62,NET,Venn Group Ltd,04339P
Gloucester City Council,23UE,Meet & Greet,FP309,Advertising And Publicity,5702,ADVERT,30/01/2015,396969,450,NET,Diversified Business Communications Uk Ltd,15016R
Gloucester City Council,23UE,Northwarehouse,RB150,Lift Maintenance,3051,10/12/2014 technician,30/01/2015,397400,147,NET,Schindler Ltd,06826C
Gloucester City Council,23UE,Off Street Car Parks,PP110,Contracted Services,6970,GC Other Items,30/01/2015,396438,11149.7,NET,Apcoa Parking (Uk) Ltd,09954M
Gloucester City Council,23UE,Off Street Car Parks,PP110,Contracted Services,6970,GC Variable Enforcement,30/01/2015,396421,3795.9,NET,Apcoa Parking (Uk) Ltd,09954M
Gloucester City Council,23UE,Parks Contract Management,LP100,Maint Of Grounds - General,3030,KINGSWAY BMX,30/01/2015,397234,139,NET,Greenfields Garden Services Ltd,48130G
Gloucester City Council,23UE,Pollution Control,HE300,Basic Pay -Admin /Prof Staff,2601,Land Work Oct & Nov 2014,30/01/2015,396281,2178.62,NET,Bromsgrove District Council,15037G
Gloucester City Council,23UE,Retail Market - Landlord,HM300,Operational Equipment <5000,5012,JAN 2015,30/01/2015,396637,280.56,NET,System Rental Uk Ltd,03239E
Gloucester City Council,23UE,Retail Market - Landlord,HM300,Operational Equipment <5000,5012,Various Items,30/01/2015,397445,104.57,NET,Arp Trading Co,09956H
Gloucester City Council,23UE,Stationery Services,RS150,Printing,5300,STATIONERY,30/01/2015,397397,1.29,NET,Lyreco Uk Ltd,11746G
Gloucester City Council,23UE,Stationery Services,RS150,Stationery,5302,STATIONERY,30/01/2015,397398,39.2,NET,Lyreco Uk Ltd,11746G
Gloucester City Council,23UE,Stationery Services,RS150,Stationery,5302,STATIONERY,30/01/2015,397399,110.36,NET,Lyreco Uk Ltd,11746G
Gloucester City Council,23UE,The Arbor,HC501,Catering Provisions -Food,5110,FOOD,30/01/2015,397396,45.75,NET,Total Produce Gloucester,12645E
Gloucester City Council,23UE,The Arbor,HC501,Catering Provisions -Food,5110,FOOD,30/01/2015,397419,247.45,NET,3663,55585U
Gloucester City Council,23UE,The Arbor,HC501,Catering Provisions -Food,5110,FOOD,30/01/2015,397420,244.7,NET,3663,55585U
Gloucester City Council,23UE,The Arbor,HC501,Catering Provisions -Food,5110,FOOD,30/01/2015,397422,417.83,NET,3663,55585U
Gloucester City Council,23UE,The Arbor,HC501,Catering Provisions -Food,5110,FOOD,30/01/2015,397423,357.35,NET,3663,55585U
Gloucester City Council,23UE,The Arbor,HC501,Catering Provisions -Food,5110,FOOD,30/01/2015,397424,288.42,NET,3663,55585U
Gloucester City Council,23UE,The Arbor,HC501,Catering Provisions -Food,5110,FOOD,30/01/2015,397430,47.93,NET,Total Produce Gloucester,12645E
Gloucester City Council,23UE,The Arbor,HC501,Catering Provisions -Food,5110,FOOD,30/01/2015,397431,51.34,NET,Total Produce Gloucester,12645E
Gloucester City Council,23UE,The Arbor,HC501,Catering Provisions -Food,5110,FOOD,30/01/2015,397432,30.23,NET,Total Produce Gloucester,12645E
Gloucester City Council,23UE,The Arbor,HC501,Catering Provisions -Food,5110,FOOD,30/01/2015,397447,327.15,NET,3663,55585U
Gloucester City Council,23UE,The Arbor,HC501,Catering Provisions -Food,5110,FOOD,30/01/2015,397450,29.94,NET,3663,55585U
Gloucester City Council,23UE,The Arbor,HC501,Catering Provisions -Food,5110,FOOD,30/01/2015,397451,369.62,NET,3663,55585U
Gloucester City Council,23UE,The Arbor,HC501,Catering Provisions -Food,5110,FOOD,30/01/2015,397452,173.72,NET,3663,55585U
Gloucester City Council,23UE,The Arbor,HC501,Catering Provisions -Food,5110,FOOD,30/01/2015,397457,24.58,NET,Total Produce Gloucester,12645E
Gloucester City Council,23UE,The Arbor,HC501,Catering Provisions -Food,5110,FOOD,30/01/2015,397458,16.62,NET,Total Produce Gloucester,12645E
Gloucester City Council,23UE,The Arbor,HC501,Catering Provisions -Food,5110,FOOD,30/01/2015,397459,13.12,NET,Total Produce Gloucester,12645E
Gloucester City Council,23UE,The Arbor,HC501,Catering Provisions -Food,5110,FOOD,30/01/2015,397461,16.19,NET,Total Produce Gloucester,12645E
Gloucester City Council,23UE,The Arbor,HC501,Catering Provisions -Food,5110,FOOD,30/01/2015,397462,18.09,NET,Total Produce Gloucester,12645E
Gloucester City Council,23UE,The Arbor,HC501,Catering Provisions -Food,5110,FOOD,30/01/2015,397463,23.22,NET,Total Produce Gloucester,12645E
Gloucester City Council,23UE,The Arbor,HC501,Catering Provisions -Food,5110,FOOD,30/01/2015,397464,9.11,NET,Total Produce Gloucester,12645E
Gloucester City Council,23UE,The Arbor,HC501,Catering Provisions -Liquor,5111,DRINK,30/01/2015,397406,67.97,NET,Cellar Supplies Cheltenham Ltd,01563L
Gloucester City Council,23UE,The Arbor,HC501,Cleaning Materials,3600,FOOD,30/01/2015,397421,26.55,NET,3663,55585U
Gloucester City Council,23UE,The Arbor,HC501,Cleaning Materials,3600,FOOD,30/01/2015,397453,25.86,NET,3663,55585U
Gloucester City Council,23UE,The Arbor,HC501,Cleaning Materials,3600,FOOD,30/01/2015,397454,130,NET,3663,55585U
Gloucester City Council,23UE,The Arbor,HC501,Other Minor Supplies Services,5590,FLOWERS,30/01/2015,397460,36.6,NET,Carols Florist,01274X
Gloucester City Council,23UE,REDACTED,REDACTED,REDACTED,REDACTED,REDACTED,02/02/2015,REDACTED,466.97,CAP,REDACTED,REDACTED
Gloucester City Council,23UE,Internal Audit,RT300,Basic Pay - Temporary Staff,2751,Temporary Staff,02/02/2015,397231,1295,NET,Robert Half Ltd,03959K
Gloucester City Council,23UE,Townscape Heritage Initiative,LY145,Contract Payments,0020,PUBLICATION,,396651,86,CAP,Riba Enterprises,09988U
,,,,,,,,Sum:,2646019.59,,,
